Workbook

Sheet Menu
Z1: 2
Z4: 2
A6: Southeast Extension District - 9
D8: Budgets
D11: Field Crops
D13: =+Soybeans!A3 -> Soybeans
D14: =RRSoybeans!A3 -> Roundup Ready Soybeans
D15: =Rice!A3 -> First Crop Rice (Jefferson-Liberty Counties)
D17: Livestock
B18: Comparative Returns
B20: Links
D21: Other Budgets
D23: ='Livestock Budget'!A3 -> Livestock Budget
D24: ='Crop Budget'!A3 -> Crop Enterprise
A46: Developed by Extension Economists, Texas A&M AgriLife Extension Service, budgets@tamu.edu.

Sheet Links
B2: Texas Crop and Livestock Budgets
B3: A Program of the Texas A&M AgriLife Extension Service
B4: Agricultural Economics Department, The Texas A&M University System
B6: Developed by Texas A&M AgriLife Extension Service Economists and Other Specialists
B8: Contact Us | G8: Clickable Logos
B10: Resources
B12: Decision Aids (includes Machinery Cost Estimator)
B14: Custom Rate Survey
B16: Basis Data
B18: Master Marketer
B20: Extension Ag Economics
B22: Department of Agricultural Economics
B24: Menu Page
B26: Links last checked 4/17/2020

Sheet Soybeans
A1: Projections for Planning Purposes Only -- Not to be Used without Updating
A2: 2023 Estimated Costs and Returns per Acre
A3: Soybeans
A4: Enter your name for this budget in the cell above.
A5: Enter Your Values in the cells highlighed in MAROON.
E6: Your Acres | R6: Your
C7: Crop Acres | D7: 500 | L7: Your | Q7: Enterprise | R7: Enterprise
E8: Your | H8: Your | I8: Cash | J8: Your | K8: Landlord | L8: Landlord | N8: Your | P8: Your | Q8: Total | R8: Total
A9: REVENUE | D9: Quantity | E9: Quantity | F9: Units | G9: $/Unit | H9: $/Unit | I9: Total | J9: Total | K9: Share | L9: Share | M9: Landlord | N9: Landlord | O9: Tenant | P9: Tenant | Q9: (500 acres) | R9: ="(" & E7 & " acres)" -> ( acres)
B10: Soybeans | D10: 25 | F10: Bushel | G10: 12.8 | I10: 320 | J10: =E10*H10 -> 0 | K10: 0 | M10: 0 | N10: =J10*L10 -> 0 | O10: 320 | P10: =+J10-N10 -> 0 | Q10: 160000 | R10: =+J10*E$7 -> 0
D11: 0 | G11: 0 | I11: 0 | J11: 0 | K11: 0 | M11: 0 | N11: 0 | O11: 0 | P11: 0 | Q11: 0 | R11: 0
D12: 0 | G12: 0 | I12: 0 | J12: 0 | K12: 0 | M12: 0 | N12: 0 | O12: 0 | P12: 0 | Q12: 0 | R12: 0
A13: Total Revenue | I13: 320 | J13: =SUM(J10:J12) -> 0 | M13: 0 | N13: =SUM(N10:N12) -> 0 | O13: 320 | P13: =SUM(P10:P12) -> 0 | Q13: 160000 | R13: =SUM(R10:R12) -> 0
Q14: Enterprise | R14: Enterprise
A15: VARIABLE COSTS | D15: Quantity | E15: Quantity | F15: Units | G15: $/Unit | H15: $/Unit | I15: Total | J15: Total | K15: Share | L15: Share | M15: Landlord | N15: Landlord | O15: Tenant | P15: Tenant | Q15: Total | R15: Total
A16: Production Costs
B17: Custom
C18: Ground Fertilizer | D18: 1 | F18: Acre | G18: 7 | I18: 7 | J18: =E18*H18 -> 0 | K18: 0 | M18: 0 | N18: =J18*L18 -> 0 | O18: 7 | P18: =+J18-N18 -> 0 | Q18: 3500 | R18: =+J18*E$7 -> 0
C19: Ground Herbicide | D19: 1 | F19: Acre | G19: 7 | I19: 7 | J19: 0 | K19: 0 | M19: 0 | N19: 0 | O19: 7 | P19: 0 | Q19: 3500 | R19: 0
C20: Herbicide Application | D20: 2 | F20: Acre | G20: 7 | I20: 14 | J20: 0 | K20: 0 | M20: 0 | N20: 0 | O20: 14 | P20: 0 | Q20: 7000 | R20: 0
C21: Air Insecticide | D21: 1 | F21: Acre | G21: 9 | I21: 9 | J21: 0 | K21: 0 | M21: 0 | N21: 0 | O21: 9 | P21: 0 | Q21: 4500 | R21: 0
C22: Custom Grain Haul | D22: 25 | F22: Bushel | G22: 0.35 | I22: 8.75 | J22: 0 | K22: 0 | M22: 0 | N22: 0 | O22: 8.75 | P22: 0 | Q22: 4375 | R22: 0
C23: Drying Soybeans | D23: 12.5 | F23: Bushel | G23: 0.5 | I23: 6.25 | J23: 0 | K23: 0 | M23: 0 | N23: 0 | O23: 6.25 | P23: 0 | Q23: 3125 | R23: 0
B24: Fertilizer
C25: DAP (18-46-0) | D25: 100 | F25: Pound | G25: 0.39 | I25: 39 | J25: 0 | K25: 0 | M25: 0 | N25: 0 | O25: 39 | P25: 0 | Q25: 19500 | R25: 0
C26: Potash (0-0-60) | D26: 100 | F26: Pound | G26: 0.21 | I26: 21 | J26: 0 | K26: 0 | M26: 0 | N26: 0 | O26: 21 | P26: 0 | Q26: 10500 | R26: 0
B27: Herbicide
C28: Valor SX | D28: 2 | F28: Ounce | G28: 4.25625 | I28: 8.5125 | J28: 0 | K28: 0 | M28: 0 | N28: 0 | O28: 8.5125 | P28: 0 | Q28: 4256.25 | R28: 0
C29: Select Max | D29: 20 | F29: Ounce | G29: 0.72265625 | I29: 14.453125 | J29: 0 | K29: 0 | M29: 0 | N29: 0 | O29: 14.453125 | P29: 0 | Q29: 7226.5625 | R29: 0
C30: Ultra Blazer | D30: 1 | F30: Pint | G30: 9.07875 | I30: 9.07875 | J30: 0 | K30: 0 | M30: 0 | N30: 0 | O30: 9.07875 | P30: 0 | Q30: 4539.375 | R30: 0
B31: Seed
C32: Seed - Soybeans | D32: 1 | F32: Bag | G32: 46 | I32: 46 | J32: 0 | K32: 0 | M32: 0 | N32: 0 | O32: 46 | P32: 0 | Q32: 23000 | R32: 0
B33: Insecticide
C34: Mustang Max | D34: 3.2 | F34: Ounce | G34: 1.1875 | I34: 3.8 | J34: 0 | K34: 0 | M34: 0 | N34: 0 | O34: 3.8 | P34: 0 | Q34: 1900 | R34: 0
B35: Other Chemicals
C36: Surfactant | D36: 1 | F36: Acre | G36: 1.6 | I36: 1.6 | J36: 0 | K36: 0 | M36: 0 | N36: 0 | O36: 1.6 | P36: 0 | Q36: 800 | R36: 0
D37: 0 | G37: 0 | I37: 0 | J37: 0 | K37: 0 | M37: 0 | N37: 0 | O37: 0 | P37: 0 | Q37: 0 | R37: 0
D38: 0 | G38: 0 | I38: 0 | J38: 0 | K38: 0 | M38: 0 | N38: 0 | O38: 0 | P38: 0 | Q38: 0 | R38: 0
D39: 0 | G39: 0 | I39: 0 | J39: =E39*H39 -> 0 | K39: 0 | M39: 0 | N39: =J39*L39 -> 0 | O39: 0 | P39: =+J39-N39 -> 0 | Q39: 0 | R39: =+J39*E$7 -> 0
B40: Machinery Labor
C41: Tractors/Self-Propelled | D41: 0.74 | F41: Hour | G41: 17.21 | I41: 12.7354 | J41: =E41*H41 -> 0 | K41: 0 | M41: 0 | N41: =J41*L41 -> 0 | O41: 12.7354 | P41: =+J41-N41 -> 0 | Q41: 6367.7 | R41: =+J41*E$7 -> 0
C42: Other Labor | D42: 0 | F42: Hour | G42: 17.21 | I42: 0 | J42: =E42*H42 -> 0 | K42: 0 | M42: 0 | N42: =J42*L42 -> 0 | O42: 0 | P42: =+J42-N42 -> 0 | Q42: 0 | R42: =+J42*E$7 -> 0
B44: Diesel Fuel
C45: Pickup/General Use Equipment | D45: 1 | F45: Acre | G45: 0 | I45: 0 | J45: =E45*H45 -> 0 | K45: 0 | M45: 0 | N45: =J45*L45 -> 0 | O45: 0 | P45: =+J45-N45 -> 0 | Q45: 0 | R45: =+J45*E$7 -> 0
C46: Tractors/Self-Propelled | D46: 3.15 | F46: Gallon | G46: 2.24 | I46: 7.056 | J46: =E46*H46 -> 0 | K46: 0 | M46: 0 | N46: =J46*L46 -> 0 | O46: 7.056 | P46: =+J46-N46 -> 0 | Q46: 3528 | R46: =+J46*E$7 -> 0
B48: Gasoline
C49: Pickup/General Use Equipment | D49: 1 | F49: Acre | G49: 1.045 | I49: 1.045 | J49: =E49*H49 -> 0 | K49: 0 | M49: 0 | N49: =J49*L49 -> 0 | O49: 1.045 | P49: =+J49-N49 -> 0 | Q49: 522.5 | R49: =+J49*E$7 -> 0
C50: Tractors/Self-Propelled | D50: 0 | F50: Gallon | G50: 2.09 | I50: 0 | J50: =E50*H50 -> 0 | K50: 0 | M50: 0 | N50: =J50*L50 -> 0 | O50: 0 | P50: =+J50-N50 -> 0 | Q50: 0 | R50: =+J50*E$7 -> 0
B52: Repairs & Maintenance
C53: Pickup/General Use Equipment | D53: 1 | F53: Acre | G53: 0.612 | I53: 0.612 | J53: =E53*H53 -> 0 | K53: 0 | M53: 0 | N53: =J53*L53 -> 0 | O53: 0.612 | P53: =+J53-N53 -> 0 | Q53: 306 | R53: =+J53*E$7 -> 0
C54: Irrigation Equipment | D54: 1 | F54: Acre | G54: 0 | I54: 0 | J54: 0 | K54: 0 | M54: 0 | N54: 0 | O54: 0 | P54: 0 | Q54: 0 | R54: 0
C55: Tractors/Self-Propelled | D55: 1 | F55: Acre | G55: 13.07535462 | I55: 13.07535462 | J55: 0 | K55: 0 | M55: 0 | N55: 0 | O55: 13.07535462 | P55: 0 | Q55: 6537.67731 | R55: 0
C56: Implements | D56: 1 | F56: Acre | G56: 9.502169533 | I56: 9.502169533 | J56: 0 | K56: 0 | M56: 0 | N56: 0 | O56: 9.502169533 | P56: 0 | Q56: 4751.084766 | R56: 0
I57: 0 | J57: 0 | K57: 0 | M57: 0 | N57: 0 | O57: 0 | P57: 0 | Q57: 0 | R57: =+J57*E$7 -> 0
I58: 0 | J58: 0 | K58: 0 | M58: 0 | N58: 0 | O58: 0 | P58: 0 | Q58: 0 | R58: 0
B59: Interest on Credit Line | G59: 0.08 | I59: 7.202445619 | J59: =+SUM(J17:J58)/2*H59 -> 0 | M59: 0 | N59: =+SUM(N17:N58)/2*L59 -> 0 | O59: 7.202445619 | P59: =+SUM(P17:P58)/2*L59 -> 0 | Q59: 3601.222809 | R59: =+J59*E$7 -> 0
A60: Total Variable Costs | I60: 246.6727448 | J60: =SUM(J18:J59) -> 0 | M60: 0 | N60: =SUM(N18:N59) -> 0 | O60: 246.6727448 | P60: =SUM(P18:P59) -> 0 | Q60: 123336.3724 | R60: =SUM(R18:R59) -> 0
A61: Planned Returns Above Variable Costs: | I61: 73.32725523 | J61: =+J13-J60 -> 0 | M61: 0 | N61: =+N13-N60 -> 0 | O61: 73.32725523 | P61: =+P13-P60 -> 0 | Q61: 36663.62761 | R61: =+R13-R60 -> 0
B62: Breakeven Price to Cover Variable Costs | G62: 9.866909791 | H62: =IF(E10=0,"n/a",(YVarExp-(YTotExp+YTotRet-J10))/E10) -> n/a | I62: Bushel
Q63: Enterprise | R63: Enterprise
A64: FIXED COSTS | D64: Quantity | E64: Quantity | F64: Units | G64: $/Unit | H64: $/Unit | J64: Total | K64: Share | L64: Share | M64: Landlord | N64: Landlord | O64: Tenant | P64: Tenant | Q64: Total | R64: Total
B65: Machinery Depreciation
C66: Pickup/General Use Equipment | D66: 1 | F66: Acre | G66: 0.6426 | I66: 0.6426 | J66: =E66*H66 -> 0 | K66: 0 | M66: 0 | N66: =J66*L66 -> 0 | O66: 0.6426 | P66: =+J66-N66 -> 0 | Q66: 321.3 | R66: =+J66*E$7 -> 0
C67: Tractors/Self-Propelled | D67: 1 | F67: Acre | G67: 12.31031045 | I67: 12.31031045 | J67: 0 | K67: 0 | M67: 0 | N67: =J67*L67 -> 0 | O67: 12.31031045 | P67: 0 | Q67: 6155.155223 | R67: 0
C68: Implements | D68: 1 | F68: Acre | G68: 12.07205745 | I68: 12.07205745 | J68: 0 | K68: 0 | M68: 0 | N68: =J68*L68 -> 0 | O68: 12.07205745 | P68: 0 | Q68: 6036.028723 | R68: 0
B69: Equipment Investment
C70: Pickup/General Use Equipment | D70: 4.437 | F70: Dollars | G70: 0.08 | I70: 0.35496 | J70: =E70*H70 -> 0 | K70: 0 | M70: 0 | N70: =J70*L70 -> 0 | O70: 0.35496 | P70: =+J70-N70 -> 0 | Q70: 177.48 | R70: =+J70*E$7 -> 0
C71: Tractors/Self-Propelled | D71: 93.50053023 | F71: Dollars | G71: 0.08 | I71: 7.480042418 | J71: 0 | K71: 0 | M71: 0 | N71: =J71*L71 -> 0 | O71: 7.480042418 | P71: 0 | Q71: 3740.021209 | R71: 0
C72: Implements | D72: 57.67573011 | F72: Dollars | G72: 0.08 | I72: 4.614058409 | J72: 0 | K72: 0 | M72: 0 | N72: =J72*L72 -> 0 | O72: 4.614058409 | P72: 0 | Q72: 2307.029204 | R72: 0
B73: Salaried Labor | D73: 1 | F73: Acre | G73: 0 | I73: 0 | J73: 0 | K73: 0 | M73: 0 | N73: =J73*L73 -> 0 | O73: 0 | P73: =+J73-N73 -> 0 | Q73: 0 | R73: =+J73*E$7 -> 0
B74: Management Fee, Owner/Operator Labor | D74: 1 | F74: Acre | G74: 0 | I74: 0 | J74: 0 | K74: 0 | M74: 0 | N74: 0 | O74: 0 | P74: 0 | Q74: 0 | R74: 0
B75: Allocated Establishment Cost | D75: 1 | F75: Acre | G75: 0 | I75: 0 | J75: 0 | K75: 0 | M75: 0 | N75: 0 | O75: 0 | P75: 0 | Q75: 0 | R75: 0
B76: Cash Rent - Soybeans | D76: 1 | F76: Acre | G76: 21 | I76: 21 | J76: 0 | K76: 0 | M76: 0 | N76: 0 | O76: 21 | P76: 0 | Q76: 10500 | R76: 0
B77: Property Taxes | D77: 1 | F77: Acre | G77: 0 | I77: 0 | J77: =E77*H77 -> 0 | K77: 0 | M77: 0 | N77: 0 | O77: 0 | P77: 0 | Q77: 0 | R77: =+J77*E$7 -> 0
B78: Whole Farm Insurance | D78: 1 | F78: Acre | G78: 0 | I78: 0 | J78: 0 | K78: 0 | M78: 0 | N78: 0 | O78: 0 | P78: 0 | Q78: 0 | R78: 0
D79: 1 | G79: 0 | I79: 0 | J79: 0 | K79: 0 | M79: 0 | N79: 0 | O79: 0 | P79: 0 | Q79: 0 | R79: 0
D80: 1 | G80: 0 | I80: 0 | J80: 0 | K80: 0 | M80: 0 | N80: 0 | O80: 0 | P80: 0 | Q80: 0 | R80: 0
A81: Total Fixed Costs | I81: 58.47402872 | J81: =+SUM(J66:J80) -> 0 | M81: 0 | N81: =+SUM(N66:N80) -> 0 | O81: 58.47402872 | P81: =+SUM(P66:P80) -> 0 | Q81: 29237.01436 | R81: =+SUM(R66:R80) -> 0
A82: Total Specified Costs | I82: 305.1467735 | J82: =+J60+J81 -> 0 | M82: 0 | N82: =+N60+N81 -> 0 | O82: 305.1467735 | P82: =+P60+P81 -> 0 | Q82: 152573.3867 | R82: =+R60+R81 -> 0
A84: Returns Above Specified Costs | I84: 14.85322651 | J84: =+J13-J82 -> 0 | M84: 0 | N84: =+N13-N82 -> 0 | O84: 14.85322651 | P84: =+P13-P82 -> 0 | Q84: 7426.613255 | R84: =+R13-R82 -> 0
A86: Breakeven Price to Cover Total Costs | G86: 12.20587094 | H86: =IF(E10=0,"n/a",(YTotExp-(YTotExp+YTotRet-J10))/E10) -> n/a | I86: Bushel
D88: Example Breakeven Prices
B89: Example | C89: Example | D89: To Cover | G89: To Cover
B90: Yield | C90: Yield | D90: Variable | G90: Total
B91: Percent | C91: Bushel | D91: Costs | G91: Costs
B92: 0.75 | C92: 18.75 | D92: 13.15587972 | G92: 16.27449459
B93: 0.9 | C93: 22.5 | D93: 10.9632331 | G93: 13.56207882
B94: 1 | C94: 25 | D94: 9.866909791 | G94: 12.20587094
B95: 1.1 | C95: 27.5 | D95: 8.969917992 | G95: 11.09624631
B96: 1.25 | C96: 31.25 | D96: 7.893527833 | G96: 9.764696752
D98: Your Breakeven Prices
B99: Your | C99: Your | E99: To Cover | H99: To Cover
B100: Yield | C100: Yield | E100: Variable | H100: Total
B101: Percent | C101: Bushel | E101: Costs | H101: Costs
B102: 0.75 | C102: =E10*YPER1 -> 0 | E102: =IF($E$10=0,0,(YVarExp-(YTotExp+YTotRet-J10))/($E$10*YPER1)) -> 0 | H102: =IF($E$10=0,0,(YTotExp-(YTotExp+YTotRet-J10))/($E$10*YPER1)) -> 0
B103: 0.9 | C103: =E10*YPER2 -> 0 | E103: =IF($E$10=0,0,(YVarExp-(YTotExp+YTotRet-J10))/($E$10*YPER2)) -> 0 | H103: =IF($E$10=0,0,(YTotExp-(YTotExp+YTotRet-J10))/($E$10*YPER2)) -> 0
B104: 1 | C104: =+E10 -> 0 | E104: =IF($E$10=0,0,(YVarExp-(YTotExp+YTotRet-J10))/($E$10*YPER3)) -> 0 | H104: =IF($E$10=0,0,(YTotExp-(YTotExp+YTotRet-J10))/($E$10*YPER3)) -> 0
B105: 1.1 | C105: =E10*YPER4 -> 0 | E105: =IF($E$10=0,0,(YVarExp-(YTotExp+YTotRet-J10))/($E$10*YPER4)) -> 0 | H105: =IF($E$10=0,0,(YTotExp-(YTotExp+YTotRet-J10))/($E$10*YPER4)) -> 0
B106: 1.25 | C106: =E10*YPER5 -> 0 | E106: =IF($E$10=0,0,(YVarExp-(YTotExp+YTotRet-J10))/($E$10*YPER5)) -> 0 | H106: =IF($E$10=0,0,(YTotExp-(YTotExp+YTotRet-J10))/($E$10*YPER5)) -> 0
A108: Developed by Extension Economists, Texas A&M AgriLife Extension Service, budgets@tamu.edu.
A110: Information presented is prepared solely as a general guide and not intended to recognize or predict the costs and returns from any one operation. Brand names are mentioned only as examples and imply no endorsement.

Sheet RRSoybeans
A1: Projections for Planning Purposes Only -- Not to be Used without Updating
A2: 2023 Estimated Costs and Returns per Acre
A3: Roundup Ready Soybeans
A4: Enter your name for this budget in the cell above.
A5: Enter Your Values in the cells highlighed in MAROON.
E6: Your Acres | R6: Your
C7: Crop Acres | D7: 500 | L7: Your | Q7: Enterprise | R7: Enterprise
E8: Your | H8: Your | I8: Cash | J8: Your | K8: Landlord | L8: Landlord | N8: Your | P8: Your | Q8: Total | R8: Total
A9: REVENUE | D9: Quantity | E9: Quantity | F9: Units | G9: $/Unit | H9: $/Unit | I9: Total | J9: Total | K9: Share | L9: Share | M9: Landlord | N9: Landlord | O9: Tenant | P9: Tenant | Q9: (500 acres) | R9: ="(" & E7 & " acres)" -> ( acres)
B10: Soybeans | D10: 22 | F10: Bushel | G10: 12.8 | I10: 281.6 | J10: =E10*H10 -> 0 | K10: 0 | M10: 0 | N10: =J10*L10 -> 0 | O10: 281.6 | P10: =+J10-N10 -> 0 | Q10: 140800 | R10: =+J10*E$7 -> 0
D11: 0 | G11: 0 | I11: 0 | J11: 0 | K11: 0 | M11: 0 | N11: 0 | O11: 0 | P11: =+J11-N11 -> 0 | Q11: 0 | R11: 0
D12: 0 | G12: 0 | I12: 0 | J12: 0 | K12: 0 | M12: 0 | N12: 0 | O12: 0 | P12: 0 | Q12: 0 | R12: 0
A13: Total Revenue | I13: 281.6 | J13: =SUM(J10:J12) -> 0 | M13: 0 | N13: =SUM(N10:N12) -> 0 | O13: 281.6 | P13: =SUM(P10:P12) -> 0 | Q13: 140800 | R13: =SUM(R10:R12) -> 0
Q14: Enterprise | R14: Enterprise
A15: VARIABLE COSTS | D15: Quantity | E15: Quantity | F15: Units | G15: $/Unit | H15: $/Unit | I15: Total | J15: Total | K15: Share | L15: Share | M15: Landlord | N15: Landlord | O15: Tenant | P15: Tenant | Q15: Total | R15: Total
A16: Production Costs
B17: Custom
C18: Ground Fertilizer | D18: 1 | F18: Acre | G18: 7 | I18: 7 | J18: =E18*H18 -> 0 | K18: 0 | M18: 0 | N18: =J18*L18 -> 0 | O18: 7 | P18: =+J18-N18 -> 0 | Q18: 3500 | R18: =+J18*E$7 -> 0
C19: Air Herbicide | D19: 2 | F19: Acre | G19: 9 | I19: 18 | J19: 0 | K19: 0 | M19: 0 | N19: 0 | O19: 18 | P19: 0 | Q19: 9000 | R19: 0
C20: Air Insecticide | D20: 1 | F20: Acre | G20: 9 | I20: 9 | J20: 0 | K20: 0 | M20: 0 | N20: 0 | O20: 9 | P20: 0 | Q20: 4500 | R20: 0
C21: Custom Grain Haul | D21: 22 | F21: Bushel | G21: 0.35 | I21: 7.7 | J21: 0 | K21: 0 | M21: 0 | N21: 0 | O21: 7.7 | P21: 0 | Q21: 3850 | R21: 0
C22: Drying Soybeans | D22: 11 | F22: Bushel | G22: 0.5 | I22: 5.5 | J22: 0 | K22: 0 | M22: 0 | N22: 0 | O22: 5.5 | P22: 0 | Q22: 2750 | R22: 0
B23: Fertilizer
C24: DAP (18-46-0) | D24: 100 | F24: Pound | G24: 0.39 | I24: 39 | J24: 0 | K24: 0 | M24: 0 | N24: 0 | O24: 39 | P24: 0 | Q24: 19500 | R24: 0
C25: Potash (0-0-60) | D25: 100 | F25: Pound | G25: 0.21 | I25: 21 | J25: 0 | K25: 0 | M25: 0 | N25: 0 | O25: 21 | P25: 0 | Q25: 10500 | R25: 0
B26: Herbicide
C27: Glyphosphate | D27: 2 | F27: Quart | G27: 2.875 | I27: 5.75 | J27: 0 | K27: 0 | M27: 0 | N27: 0 | O27: 5.75 | P27: 0 | Q27: 2875 | R27: 0
C28: Classic | D28: 0.25 | F28: Ounce | G28: 16.25 | I28: 4.0625 | J28: 0 | K28: 0 | M28: 0 | N28: 0 | O28: 4.0625 | P28: 0 | Q28: 2031.25 | R28: 0
C29: Ultra Blazer | D29: 0.5 | F29: Pint | G29: 9.07875 | I29: 4.539375 | J29: 0 | K29: 0 | M29: 0 | N29: 0 | O29: 4.539375 | P29: 0 | Q29: 2269.6875 | R29: 0
B30: Insecticide
C31: Mustang Max | D31: 3.2 | F31: Ounce | G31: 1.1875 | I31: 3.8 | J31: 0 | K31: 0 | M31: 0 | N31: 0 | O31: 3.8 | P31: 0 | Q31: 1900 | R31: 0
B32: Seed
C33: Seed - Roundup Ready Soybean | D33: 1 | F33: Bag | G33: 72 | I33: 72 | J33: 0 | K33: 0 | M33: 0 | N33: 0 | O33: 72 | P33: 0 | Q33: 36000 | R33: 0
B34: Other Chemicals
C35: Surfactant | D35: 1 | F35: Acre | G35: 1.6 | I35: 1.6 | J35: 0 | K35: 0 | M35: 0 | N35: 0 | O35: 1.6 | P35: 0 | Q35: 800 | R35: 0
D36: 0 | G36: 0 | I36: 0 | J36: 0 | K36: 0 | M36: 0 | N36: 0 | O36: 0 | P36: 0 | Q36: 0 | R36: 0
D37: 0 | G37: 0 | I37: 0 | J37: 0 | K37: 0 | M37: 0 | N37: 0 | O37: 0 | P37: 0 | Q37: 0 | R37: 0
D38: 0 | G38: 0 | I38: 0 | J38: =E38*H38 -> 0 | K38: 0 | M38: 0 | N38: =J38*L38 -> 0 | O38: 0 | P38: =+J38-N38 -> 0 | Q38: 0 | R38: =+J38*E$7 -> 0
B39: Machinery Labor
C40: Tractors/Self-Propelled | D40: 0.81 | F40: Hour | G40: 17.21 | I40: 13.9401 | J40: =E40*H40 -> 0 | K40: 0 | M40: 0 | N40: =J40*L40 -> 0 | O40: 13.9401 | P40: =+J40-N40 -> 0 | Q40: 6970.05 | R40: =+J40*E$7 -> 0
C41: Other Labor | D41: 0 | F41: Hour | G41: 17.21 | I41: 0 | J41: =E41*H41 -> 0 | K41: 0 | M41: 0 | N41: =J41*L41 -> 0 | O41: 0 | P41: =+J41-N41 -> 0 | Q41: 0 | R41: =+J41*E$7 -> 0
B43: Diesel Fuel
C44: Pickup/General Use Equipment | D44: 1 | F44: Acre | G44: 0 | I44: 0 | J44: =E44*H44 -> 0 | K44: 0 | M44: 0 | N44: =J44*L44 -> 0 | O44: 0 | P44: =+J44-N44 -> 0 | Q44: 0 | R44: =+J44*E$7 -> 0
C45: Tractors/Self-Propelled | D45: 3.35 | F45: Gallon | G45: 2.24 | I45: 7.504 | J45: =E45*H45 -> 0 | K45: 0 | M45: 0 | N45: =J45*L45 -> 0 | O45: 7.504 | P45: =+J45-N45 -> 0 | Q45: 3752 | R45: =+J45*E$7 -> 0
B47: Gasoline
C48: Pickup/General Use Equipment | D48: 1 | F48: Acre | G48: 1.045 | I48: 1.045 | J48: =E48*H48 -> 0 | K48: 0 | M48: 0 | N48: =J48*L48 -> 0 | O48: 1.045 | P48: =+J48-N48 -> 0 | Q48: 522.5 | R48: =+J48*E$7 -> 0
C49: Tractors/Self-Propelled | D49: 0 | F49: Gallon | G49: 2.09 | I49: 0 | J49: =E49*H49 -> 0 | K49: 0 | M49: 0 | N49: =J49*L49 -> 0 | O49: 0 | P49: =+J49-N49 -> 0 | Q49: 0 | R49: =+J49*E$7 -> 0
B51: Repairs & Maintenance
C52: Pickup/General Use Equipment | D52: 1 | F52: Acre | G52: 0.612 | I52: 0.612 | J52: =E52*H52 -> 0 | K52: 0 | M52: 0 | N52: =J52*L52 -> 0 | O52: 0.612 | P52: =+J52-N52 -> 0 | Q52: 306 | R52: =+J52*E$7 -> 0
C53: Irrigation Equipment | D53: 1 | F53: Acre | G53: 0 | I53: 0 | J53: 0 | K53: 0 | M53: 0 | N53: 0 | O53: 0 | P53: 0 | Q53: 0 | R53: 0
C54: Tractors/Self-Propelled | D54: 1 | F54: Acre | G54: 13.61116911 | I54: 13.61116911 | J54: 0 | K54: 0 | M54: 0 | N54: 0 | O54: 13.61116911 | P54: 0 | Q54: 6805.584557 | R54: 0
C55: Implements | D55: 1 | F55: Acre | G55: 8.646775223 | I55: 8.646775223 | J55: 0 | K55: 0 | M55: 0 | N55: 0 | O55: 8.646775223 | P55: 0 | Q55: 4323.387611 | R55: 0
I56: 0 | J56: 0 | K56: 0 | M56: 0 | N56: 0 | O56: 0 | P56: 0 | Q56: 0 | R56: 0
I57: 0 | J57: 0 | K57: 0 | M57: 0 | N57: 0 | O57: 0 | P57: 0 | Q57: 0 | R57: 0
B58: Interest on Credit Line | G58: 0.08 | I58: 7.574514963 | J58: =+SUM(J17:J57)/2*H58 -> 0 | M58: 0 | N58: =+SUM(N17:N57)/2*L58 -> 0 | O58: 7.574514963 | P58: =+SUM(P17:P57)/2*L58 -> 0 | Q58: 3787.257481 | R58: =+J58*E$7 -> 0
A59: Total Variable Costs | I59: 251.8854343 | J59: =SUM(J18:J58) -> 0 | M59: 0 | N59: =SUM(N18:N58) -> 0 | O59: 251.8854343 | P59: =SUM(P18:P58) -> 0 | Q59: 125942.7172 | R59: =SUM(R18:R58) -> 0
A60: Planned Returns Above Variable Costs: | I60: 29.7145657 | J60: =+J13-J59 -> 0 | M60: 0 | N60: =+N13-N59 -> 0 | O60: 29.7145657 | P60: =+P13-P59 -> 0 | Q60: 14857.28285 | R60: =+R13-R59 -> 0
B61: Breakeven Price to Cover Variable Costs | G61: 11.44933792 | H61: =IF(E10=0,"n/a",(YVarExp-(YTotExp+YTotRet-J10))/E10) -> n/a | I61: Bushel
Q62: Enterprise | R62: Enterprise
A63: FIXED COSTS | D63: Quantity | E63: Quantity | F63: Units | G63: $/Unit | H63: $/Unit | I63: Total | J63: Total | K63: Share | L63: Share | M63: Landlord | N63: Landlord | O63: Tenant | P63: Tenant | Q63: Total | R63: Total
B64: Machinery Depreciation
C65: Pickup/General Use Equipment | D65: 1 | F65: Acre | G65: 0.6426 | I65: 0.6426 | J65: =E65*H65 -> 0 | K65: 0 | M65: 0 | N65: =J65*L65 -> 0 | O65: 0.6426 | P65: =+J65-N65 -> 0 | Q65: 321.3 | R65: =+J65*E$7 -> 0
C66: Tractors/Self-Propelled | D66: 1 | F66: Acre | G66: 12.86398543 | I66: 12.86398543 | J66: 0 | K66: 0 | M66: 0 | N66: =J66*L66 -> 0 | O66: 12.86398543 | P66: 0 | Q66: 6431.992713 | R66: 0
C67: Implements | D67: 1 | F67: Acre | G67: 10.70797524 | I67: 10.70797524 | J67: 0 | K67: 0 | M67: 0 | N67: =J67*L67 -> 0 | O67: 10.70797524 | P67: 0 | Q67: 5353.987622 | R67: 0
B68: Equipment Investment
C69: Pickup/General Use Equipment | D69: 4.437 | F69: Dollars | G69: 0.08 | I69: 0.35496 | J69: =E69*H69 -> 0 | K69: 0 | M69: 0 | N69: =J69*L69 -> 0 | O69: 0.35496 | P69: =+J69-N69 -> 0 | Q69: 177.48 | R69: =+J69*E$7 -> 0
C70: Tractors/Self-Propelled | D70: 97.81383692 | F70: Dollars | G70: 0.08 | I70: 7.825106953 | J70: 0 | K70: 0 | M70: 0 | N70: =J70*L70 -> 0 | O70: 7.825106953 | P70: 0 | Q70: 3912.553477 | R70: 0
C71: Implements | D71: 51.84048958 | F71: Dollars | G71: 0.08 | I71: 4.147239166 | J71: 0 | K71: 0 | M71: 0 | N71: =J71*L71 -> 0 | O71: 4.147239166 | P71: 0 | Q71: 2073.619583 | R71: 0
B72: Salaried Labor | D72: 1 | F72: Acre | G72: 0 | I72: 0 | J72: 0 | K72: 0 | M72: 0 | N72: =J72*L72 -> 0 | O72: 0 | P72: =+J72-N72 -> 0 | Q72: 0 | R72: =+J72*E$7 -> 0
B73: Management Fee, Owner/Operator Labor | D73: 1 | F73: Acre | G73: 0 | I73: 0 | J73: 0 | K73: 0 | M73: 0 | N73: 0 | O73: 0 | P73: 0 | Q73: 0 | R73: 0
B74: Allocated Establishment Cost | D74: 1 | F74: Acre | G74: 0 | I74: 0 | J74: 0 | K74: 0 | M74: 0 | N74: 0 | O74: 0 | P74: 0 | Q74: 0 | R74: 0
B75: Cash Rent - Soybeans | D75: 1 | F75: Acre | G75: 21 | I75: 21 | J75: 0 | K75: 0 | M75: 0 | N75: 0 | O75: 21 | P75: 0 | Q75: 10500 | R75: 0
B76: Property Taxes | D76: 1 | F76: Acre | G76: 0 | I76: 0 | J76: 0 | K76: 0 | M76: 0 | N76: 0 | O76: 0 | P76: 0 | Q76: 0 | R76: 0
B77: Whole Farm Insurance | D77: 1 | F77: Acre | G77: 0 | I77: 0 | J77: 0 | K77: 0 | M77: 0 | N77: 0 | O77: 0 | P77: 0 | Q77: 0 | R77: 0
D78: 1 | G78: 0 | I78: 0 | J78: 0 | K78: 0 | M78: 0 | N78: 0 | O78: 0 | P78: 0 | Q78: 0 | R78: 0
D79: 1 | G79: 0 | I79: 0 | J79: =E79*H79 -> 0 | K79: 0 | M79: 0 | N79: 0 | O79: 0 | P79: 0 | Q79: 0 | R79: 0
A80: Total Fixed Costs | I80: 57.54186679 | J80: =+SUM(J65:J79) -> 0 | M80: 0 | N80: =+SUM(N65:N79) -> 0 | O80: 57.54186679 | P80: =+SUM(P65:P79) -> 0 | Q80: 28770.93339 | R80: =+SUM(R65:R79) -> 0
A81: Total Specified Costs | I81: 309.4273011 | J81: =+J59+J80 -> 0 | M81: 0 | N81: =+N59+N80 -> 0 | O81: 309.4273011 | P81: =+P59+P80 -> 0 | Q81: 154713.6505 | R81: =+R59+R80 -> 0
A83: Returns Above Specified Costs | I83: -27.82730109 | J83: =+J13-J81 -> 0 | M83: 0 | N83: =+N13-N81 -> 0 | O83: -27.82730109 | P83: =+P13-P81 -> 0 | Q83: -13913.65054 | R83: =+R13-R81 -> 0
A85: Breakeven Price to Cover Total Costs | G85: 14.06487732 | H85: =IF(E10=0,"n/a",(YTotExp-(YTotExp+YTotRet-J10))/E10) -> n/a | I85: Bushel
D87: Example Breakeven Prices
B88: Example | C88: Example | D88: To Cover | G88: To Cover
B89: Yield | C89: Yield | D89: Variable | G89: Total
B90: Percent | C90: Bushel | D90: Costs | G90: Costs
B91: 0.75 | C91: 16.5 | D91: 15.2657839 | G91: 18.75316976
B92: 0.9 | C92: 19.8 | D92: 12.72148658 | G92: 15.62764147
B93: 1 | C93: 22 | D93: 11.44933792 | G93: 14.06487732
B94: 1.1 | C94: 24.2 | D94: 10.40848902 | G94: 12.78625211
B95: 1.25 | C95: 27.5 | D95: 9.159470338 | G95: 11.25190186
D97: Your Breakeven Prices
B98: Your | C98: Your | E98: To Cover | H98: To Cover
B99: Yield | C99: Yield | E99: Variable | H99: Total
B100: Percent | C100: Bushel | E100: Costs | H100: Costs
B101: 0.75 | C101: =E10*YPER1 -> 0 | E101: =IF($E$10=0,0,(YVarExp-(YTotExp+YTotRet-J10))/($E$10*YPER1)) -> 0 | H101: =IF($E$10=0,0,(YTotExp-(YTotExp+YTotRet-J10))/($E$10*YPER1)) -> 0
B102: 0.9 | C102: =E10*YPER2 -> 0 | E102: =IF($E$10=0,0,(YVarExp-(YTotExp+YTotRet-J10))/($E$10*YPER2)) -> 0 | H102: =IF($E$10=0,0,(YTotExp-(YTotExp+YTotRet-J10))/($E$10*YPER2)) -> 0
B103: 1 | C103: =+E10 -> 0 | E103: =IF($E$10=0,0,(YVarExp-(YTotExp+YTotRet-J10))/($E$10*YPER3)) -> 0 | H103: =IF($E$10=0,0,(YTotExp-(YTotExp+YTotRet-J10))/($E$10*YPER3)) -> 0
B104: 1.1 | C104: =E10*YPER4 -> 0 | E104: =IF($E$10=0,0,(YVarExp-(YTotExp+YTotRet-J10))/($E$10*YPER4)) -> 0 | H104: =IF($E$10=0,0,(YTotExp-(YTotExp+YTotRet-J10))/($E$10*YPER4)) -> 0
B105: 1.25 | C105: =E10*YPER5 -> 0 | E105: =IF($E$10=0,0,(YVarExp-(YTotExp+YTotRet-J10))/($E$10*YPER5)) -> 0 | H105: =IF($E$10=0,0,(YTotExp-(YTotExp+YTotRet-J10))/($E$10*YPER5)) -> 0
A107: Developed by Extension Economists, Texas A&M AgriLife Extension Service, budgets@tamu.edu.
A109: Information presented is prepared solely as a general guide and not intended to recognize or predict the costs and returns from any one operation. Brand names are mentioned only as examples and imply no endorsement.

Sheet Rice
A1: Projections for Planning Purposes Only -- Not to be Used without Updating
A2: 2023 Estimated Costs and Returns per Acre
A3: First Crop Rice (Jefferson-Liberty Counties)
A4: Enter your name for this budget in the cell above.
A5: Enter Your Values in the cells highlighed in MAROON.
E6: Your Acres | R6: Your
C7: Crop Acres | D7: 450 | L7: Your | Q7: Enterprise | R7: Enterprise
E8: Your | H8: Your | I8: Cash | J8: Your | K8: Landlord | L8: Landlord | N8: Your | P8: Your | Q8: Total | R8: Total
A9: REVENUE | D9: Quantity | E9: Quantity | F9: Units | G9: $/Unit | H9: $/Unit | I9: Total | J9: Total | K9: Share | L9: Share | M9: Landlord | N9: Landlord | O9: Tenant | P9: Tenant | Q9: (450 acres) | R9: ="(" & E7 & " acres)" -> ( acres)
B10: Rice 1st Crop Loan | D10: 55 | F10: CWT | G10: 7.26 | I10: 399.3 | J10: =E10*H10 -> 0 | K10: 0 | M10: 0 | N10: =J10*L10 -> 0 | O10: 399.3 | P10: =+J10-N10 -> 0 | Q10: 179685 | R10: =+J10*E$7 -> 0
B11: Rice 1st Crop Premium | D11: 55 | F11: CWT | G11: 8.74 | I11: 480.7 | J11: 0 | K11: 0 | M11: 0 | N11: 0 | O11: 480.7 | P11: =+J11-N11 -> 0 | Q11: 216315 | R11: 0
D12: 0 | G12: 0 | I12: 0 | J12: 0 | K12: 0 | M12: 0 | N12: 0 | O12: 0 | P12: 0 | Q12: 0 | R12: 0
D13: 0 | G13: 0 | I13: 0 | J13: 0 | K13: 0 | M13: 0 | N13: 0 | O13: 0 | P13: 0 | Q13: 0 | R13: 0
A14: Total Revenue | I14: 880 | J14: =SUM(J10:J13) -> 0 | M14: 0 | N14: =SUM(N10:N13) -> 0 | O14: 880 | P14: =SUM(P10:P13) -> 0 | Q14: 396000 | R14: =SUM(R10:R13) -> 0
Q15: Enterprise | R15: Enterprise
A16: VARIABLE COSTS | D16: Quantity | E16: Quantity | F16: Units | G16: $/Unit | H16: $/Unit | I16: Total | J16: Total | K16: Share | L16: Share | M16: Landlord | N16: Landlord | O16: Tenant | P16: Tenant | Q16: Total | R16: Total
A17: Production Costs
B18: Custom
C19: Pre-Plant Fertilization | D19: 1 | F19: Acre | G19: 9.36 | I19: 9.36 | J19: =E19*H19 -> 0 | K19: 0 | M19: 0 | N19: =J19*L19 -> 0 | O19: 9.36 | P19: =+J19-N19 -> 0 | Q19: 4212 | R19: =+J19*E$7 -> 0
C20: Survey Levees | D20: 1 | F20: Acre | G20: 7.72 | I20: 7.72 | J20: 0 | K20: 0 | M20: 0 | N20: 0 | O20: 7.72 | P20: 0 | Q20: 3474 | R20: 0
C21: Air Herbicide | D21: 1 | F21: Acre | G21: 9 | I21: 9 | J21: 0 | K21: 0 | M21: 0 | N21: 0 | O21: 9 | P21: 0 | Q21: 4050 | R21: 0
C22: Top Dress Fertilization | D22: 330 | F22: Pound | G22: 0.09 | I22: 29.7 | J22: 0 | K22: 0 | M22: 0 | N22: 0 | O22: 29.7 | P22: 0 | Q22: 13365 | R22: 0
C23: Air Insecticide | D23: 1 | F23: Acre | G23: 9 | I23: 9 | J23: 0 | K23: 0 | M23: 0 | N23: 0 | O23: 9 | P23: 0 | Q23: 4050 | R23: 0
C24: Rice Hauling | D24: 62.37 | F24: CWT | G24: 0.3 | I24: 18.711 | J24: 0 | K24: 0 | M24: 0 | N24: 0 | O24: 18.711 | P24: 0 | Q24: 8419.95 | R24: 0
C25: Rice Drying | D25: 62.37 | F25: CWT | G25: 1.4 | I25: 87.318 | J25: 0 | K25: 0 | M25: 0 | N25: 0 | O25: 87.318 | P25: 0 | Q25: 39293.1 | R25: 0
C26: Commission | D26: 55 | F26: CWT | G26: 0.08 | I26: 4.4 | J26: 0 | K26: 0 | M26: 0 | N26: 0 | O26: 4.4 | P26: 0 | Q26: 1980 | R26: 0
B27: Fertilizer
C28: DAP (18-46-0) | D28: 100 | F28: Pound | G28: 0.39 | I28: 39 | J28: 0 | K28: 0 | M28: 0 | N28: 0 | O28: 39 | P28: 0 | Q28: 17550 | R28: 0
C29: Potash (0-0-60) | D29: 50 | F29: Pound | G29: 0.21 | I29: 10.5 | J29: 0 | K29: 0 | M29: 0 | N29: 0 | O29: 10.5 | P29: 0 | Q29: 4725 | R29: 0
C30: Urea (46-0-0) | D30: 330 | F30: Pound | G30: 0.62 | I30: 204.6 | J30: 0 | K30: 0 | M30: 0 | N30: 0 | O30: 204.6 | P30: 0 | Q30: 92070 | R30: 0
B31: Herbicide
C32: Propanil | D32: 2 | F32: Gallon | G32: 28 | I32: 56 | J32: 0 | K32: 0 | M32: 0 | N32: 0 | O32: 56 | P32: 0 | Q32: 25200 | R32: 0
C33: Facet L | D33: 1 | F33: Quart | G33: 27.25 | I33: 27.25 | J33: 0 | K33: 0 | M33: 0 | N33: 0 | O33: 27.25 | P33: 0 | Q33: 12262.5 | R33: 0
C34: Permit | D34: 1 | F34: Ounce | G34: 19.1 | I34: 19.1 | J34: 0 | K34: 0 | M34: 0 | N34: 0 | O34: 19.1 | P34: 0 | Q34: 8595 | R34: 0
B35: Insecticide
C36: Mustang Max | D36: 3.2 | F36: Ounce | G36: 1.1875 | I36: 3.8 | J36: 0 | K36: 0 | M36: 0 | N36: 0 | O36: 3.8 | P36: 0 | Q36: 1710 | R36: 0
B37: Seed
C38: Seed - Rice | D38: 0.7 | F38: CWT | G38: 55 | I38: 38.5 | J38: 0 | K38: 0 | M38: 0 | N38: 0 | O38: 38.5 | P38: 0 | Q38: 17325 | R38: 0
B39: Fungicides
C40: Quilt XL | D40: 17 | F40: Ounce | G40: 1.4453125 | I40: 24.5703125 | J40: 0 | K40: 0 | M40: 0 | N40: 0 | O40: 24.5703125 | P40: 0 | Q40: 11056.64062 | R40: 0
D41: 0 | G41: 0 | I41: 0 | J41: 0 | K41: 0 | M41: 0 | N41: 0 | O41: 0 | P41: 0 | Q41: 0 | R41: 0
D42: 0 | G42: 0 | I42: 0 | J42: 0 | K42: 0 | M42: 0 | N42: 0 | O42: 0 | P42: 0 | Q42: 0 | R42: 0
D43: 0 | G43: 0 | I43: 0 | J43: =E43*H43 -> 0 | K43: 0 | M43: 0 | N43: =J43*L43 -> 0 | O43: 0 | P43: =+J43-N43 -> 0 | Q43: 0 | R43: =+J43*E$7 -> 0
B44: Irrigation
C45: Water Cost | D45: 1 | F45: Acre | G45: 45 | I45: 45 | J45: =E45*H45 -> 0 | K45: 0 | M45: 0 | N45: =J45*L45 -> 0 | O45: 45 | P45: =+J45-N45 -> 0 | Q45: 20250 | R45: =+J45*E$7 -> 0
B46: Machinery Labor
C47: Tractors/Self-Propelled | D47: 3.01 | F47: Hour | G47: 17.21 | I47: 51.8021 | J47: =E47*H47 -> 0 | K47: 0 | M47: 0 | N47: =J47*L47 -> 0 | O47: 51.8021 | P47: =+J47-N47 -> 0 | Q47: 23310.945 | R47: =+J47*E$7 -> 0
C48: Other Labor | D48: 0 | F48: Hour | G48: 17.21 | I48: 0 | J48: =E48*H48 -> 0 | K48: 0 | M48: 0 | N48: =J48*L48 -> 0 | O48: 0 | P48: =+J48-N48 -> 0 | Q48: 0 | R48: =+J48*E$7 -> 0
B50: Diesel Fuel
C51: Pickup/General Use Equipment | D51: 1 | F51: Acre | G51: 0 | I51: 0 | J51: =E51*H51 -> 0 | K51: 0 | M51: 0 | N51: =J51*L51 -> 0 | O51: 0 | P51: =+J51-N51 -> 0 | Q51: 0 | R51: =+J51*E$7 -> 0
C52: Tractors/Self-Propelled | D52: 11.86 | F52: Gallon | G52: 2.24 | I52: 26.5664 | J52: =E52*H52 -> 0 | K52: 0 | M52: 0 | N52: =J52*L52 -> 0 | O52: 26.5664 | P52: =+J52-N52 -> 0 | Q52: 11954.88 | R52: =+J52*E$7 -> 0
B54: Gasoline
C55: Pickup/General Use Equipment | D55: 1 | F55: Acre | G55: 1.741666667 | I55: 1.741666667 | J55: =E55*H55 -> 0 | K55: 0 | M55: 0 | N55: =J55*L55 -> 0 | O55: 1.741666667 | P55: =+J55-N55 -> 0 | Q55: 783.75 | R55: =+J55*E$7 -> 0
C56: Tractors/Self-Propelled | D56: 0 | F56: Gallon | G56: 2.09 | I56: 0 | J56: =E56*H56 -> 0 | K56: 0 | M56: 0 | N56: =J56*L56 -> 0 | O56: 0 | P56: =+J56-N56 -> 0 | Q56: 0 | R56: =+J56*E$7 -> 0
B58: Repairs & Maintenance
C59: Pickup/General Use Equipment | D59: 1 | F59: Acre | G59: 1.02 | I59: 1.02 | J59: =E59*H59 -> 0 | K59: 0 | M59: 0 | N59: =J59*L59 -> 0 | O59: 1.02 | P59: =+J59-N59 -> 0 | Q59: 459 | R59: =+J59*E$7 -> 0
C60: Irrigation Equipment | D60: 1 | F60: Acre | G60: 0 | I60: 0 | J60: 0 | K60: 0 | M60: 0 | N60: 0 | O60: 0 | P60: 0 | Q60: 0 | R60: 0
C61: Tractors/Self-Propelled | D61: 1 | F61: Acre | G61: 29.76635572 | I61: 29.76635572 | J61: 0 | K61: 0 | M61: 0 | N61: 0 | O61: 29.76635572 | P61: 0 | Q61: 13394.86007 | R61: 0
C62: Implements | D62: 1 | F62: Acre | G62: 31.78864407 | I62: 31.78864407 | J62: 0 | K62: 0 | M62: 0 | N62: 0 | O62: 31.78864407 | P62: 0 | Q62: 14304.88983 | R62: 0
I63: 0 | J63: 0 | K63: 0 | M63: 0 | N63: 0 | O63: 0 | P63: 0 | Q63: 0 | R63: 0
I64: 0 | J64: 0 | K64: 0 | M64: 0 | N64: 0 | O64: 0 | P64: 0 | Q64: 0 | R64: 0
B65: Interest on Credit Line | G65: 0.08 | I65: 16.04867218 | J65: =+SUM(J18:J64)/2*H65 -> 0 | M65: 0 | N65: =+SUM(N18:N64)/2*L65 -> 0 | O65: 16.04867218 | P65: =+SUM(P18:P64)/2*L65 -> 0 | Q65: 7221.90248 | R65: =+J65*E$7 -> 0
A66: Total Variable Costs | I66: 802.2631511 | J66: =SUM(J19:J65) -> 0 | M66: 0 | N66: =SUM(N19:N65) -> 0 | O66: 802.2631511 | P66: =SUM(P19:P65) -> 0 | Q66: 361018.418 | R66: =SUM(R19:R65) -> 0
A67: Planned Returns Above Variable Costs: | I67: 77.73684887 | J67: =+J14-J66 -> 0 | M67: 0 | N67: =+N14-N66 -> 0 | O67: 77.73684887 | P67: =+P14-P66 -> 0 | Q67: 34981.58199 | R67: =+R14-R66 -> 0
B68: Breakeven Price to Cover Variable Costs | G68: 5.846602748 | H68: =IF(E10=0,"n/a",(YVarExp-(YTotExp+YTotRet-J10))/E10) -> n/a | I68: CWT
Q69: Enterprise | R69: Enterprise
A70: FIXED COSTS | D70: Quantity | E70: Quantity | F70: Units | G70: $/Unit | H70: $/Unit | I70: Total | J70: Total | K70: Share | L70: Share | M70: Landlord | N70: Landlord | O70: Tenant | P70: Tenant | Q70: Total | R70: Total
B71: Machinery Depreciation
C72: Pickup/General Use Equipment | D72: 1 | F72: Acre | G72: 1.071 | I72: 1.071 | J72: =E72*H72 -> 0 | K72: 0 | M72: 0 | N72: =J72*L72 -> 0 | O72: 1.071 | P72: =+J72-N72 -> 0 | Q72: 481.95 | R72: =+J72*E$7 -> 0
C73: Tractors/Self-Propelled | D73: 1 | F73: Acre | G73: 27.9112643 | I73: 27.9112643 | J73: 0 | K73: 0 | M73: 0 | N73: =J73*L73 -> 0 | O73: 27.9112643 | P73: 0 | Q73: 12560.06893 | R73: 0
C74: Implements | D74: 1 | F74: Acre | G74: 40.3889828 | I74: 40.3889828 | J74: 0 | K74: 0 | M74: 0 | N74: =J74*L74 -> 0 | O74: 40.3889828 | P74: 0 | Q74: 18175.04226 | R74: 0
B75: Equipment Investment
C76: Pickup/General Use Equipment | D76: 7.395 | F76: Dollars | G76: 0.08 | I76: 0.5916 | J76: =E76*H76 -> 0 | K76: 0 | M76: 0 | N76: =J76*L76 -> 0 | O76: 0.5916 | P76: =+J76-N76 -> 0 | Q76: 266.22 | R76: =+J76*E$7 -> 0
C77: Tractors/Self-Propelled | D77: 215.4371198 | F77: Dollars | G77: 0.08 | I77: 17.23496959 | J77: 0 | K77: 0 | M77: 0 | N77: =J77*L77 -> 0 | O77: 17.23496959 | P77: 0 | Q77: 7755.736314 | R77: 0
C78: Implements | D78: 186.4647417 | F78: Dollars | G78: 0.08 | I78: 14.91717934 | J78: 0 | K78: 0 | M78: 0 | N78: =J78*L78 -> 0 | O78: 14.91717934 | P78: 0 | Q78: 6712.730701 | R78: 0
B79: Salaried Labor | D79: 1 | F79: Acre | G79: 0 | I79: 0 | J79: 0 | K79: 0 | M79: 0 | N79: =J79*L79 -> 0 | O79: 0 | P79: =+J79-N79 -> 0 | Q79: 0 | R79: =+J79*E$7 -> 0
B80: Management Fee, Owner/Operator Labor | D80: 1 | F80: Acre | G80: 0 | I80: 0 | J80: 0 | K80: 0 | M80: 0 | N80: 0 | O80: 0 | P80: 0 | Q80: 0 | R80: 0
B81: Allocated Establishment Cost | D81: 1 | F81: Acre | G81: 0 | I81: 0 | J81: 0 | K81: 0 | M81: 0 | N81: 0 | O81: 0 | P81: 0 | Q81: 0 | R81: 0
B82: Cash Rent - Rice | D82: 1 | F82: Acre | G82: 55 | I82: 55 | J82: 0 | K82: 0 | M82: 0 | N82: 0 | O82: 55 | P82: 0 | Q82: 24750 | R82: 0
B83: Property Taxes | D83: 1 | F83: Acre | G83: 0 | I83: 0 | J83: 0 | K83: 0 | M83: 0 | N83: 0 | O83: 0 | P83: 0 | Q83: 0 | R83: 0
B84: Whole Farm Insurance | D84: 1 | F84: Acre | G84: 0 | I84: 0 | J84: 0 | K84: 0 | M84: 0 | N84: 0 | O84: 0 | P84: 0 | Q84: 0 | R84: 0
D85: 1 | G85: 0 | I85: 0 | J85: 0 | K85: 0 | M85: 0 | N85: 0 | O85: 0 | P85: 0 | Q85: 0 | R85: 0
D86: 1 | G86: 0 | I86: 0 | J86: =E86*H86 -> 0 | K86: 0 | M86: 0 | N86: 0 | O86: 0 | P86: 0 | Q86: 0 | R86: 0
A87: Total Fixed Costs | I87: 157.114996 | J87: =+SUM(J72:J86) -> 0 | M87: 0 | N87: =+SUM(N72:N86) -> 0 | O87: 157.114996 | P87: =+SUM(P72:P86) -> 0 | Q87: 70701.74821 | R87: =+SUM(R72:R86) -> 0
A88: Total Specified Costs | I88: 959.3781471 | J88: =+J66+J87 -> 0 | M88: 0 | N88: =+N66+N87 -> 0 | O88: 959.3781471 | P88: =+P66+P87 -> 0 | Q88: 431720.1662 | R88: =+R66+R87 -> 0
A90: Returns Above Specified Costs | I90: -79.37814715 | J90: =+J14-J88 -> 0 | M90: 0 | N90: =+N14-N88 -> 0 | O90: -79.37814715 | P90: =+P14-P88 -> 0 | Q90: -35720.16622 | R90: =+R14-R88 -> 0
A92: Breakeven Price to Cover Total Costs | G92: 8.703239039 | H92: =IF(E10=0,"n/a",(YTotExp-(YTotExp+YTotRet-J10))/E10) -> n/a | I92: CWT
D94: Example Breakeven Prices
B95: Example | C95: Example | D95: To Cover | G95: To Cover
B96: Yield | C96: Yield | D96: Variable | G96: Total
B97: Percent | C97: CWT | D97: Costs | G97: Costs
B98: 0.75 | C98: 41.25 | D98: 7.79547033 | G98: 11.60431872
B99: 0.9 | C99: 49.5 | D99: 6.496225275 | G99: 9.670265599
B100: 1 | C100: 55 | D100: 5.846602748 | G100: 8.703239039
B101: 1.1 | C101: 60.5 | D101: 5.315093407 | G101: 7.91203549
B102: 1.25 | C102: 68.75 | D102: 4.677282198 | G102: 6.962591231
D104: Your Breakeven Prices
B105: Your | C105: Your | E105: To Cover | H105: To Cover
B106: Yield | C106: Yield | E106: Variable | H106: Total
B107: Percent | C107: CWT | E107: Costs | H107: Costs
B108: 0.75 | C108: =E10*YPER1 -> 0 | E108: =IF($E$10=0,0,(YVarExp-(YTotExp+YTotRet-J10))/($E$10*YPER1)) -> 0 | H108: =IF($E$10=0,0,(YTotExp-(YTotExp+YTotRet-J10))/($E$10*YPER1)) -> 0
B109: 0.9 | C109: =E10*YPER2 -> 0 | E109: =IF($E$10=0,0,(YVarExp-(YTotExp+YTotRet-J10))/($E$10*YPER2)) -> 0 | H109: =IF($E$10=0,0,(YTotExp-(YTotExp+YTotRet-J10))/($E$10*YPER2)) -> 0
B110: 1 | C110: =+E10 -> 0 | E110: =IF($E$10=0,0,(YVarExp-(YTotExp+YTotRet-J10))/($E$10*YPER3)) -> 0 | H110: =IF($E$10=0,0,(YTotExp-(YTotExp+YTotRet-J10))/($E$10*YPER3)) -> 0
B111: 1.1 | C111: =E10*YPER4 -> 0 | E111: =IF($E$10=0,0,(YVarExp-(YTotExp+YTotRet-J10))/($E$10*YPER4)) -> 0 | H111: =IF($E$10=0,0,(YTotExp-(YTotExp+YTotRet-J10))/($E$10*YPER4)) -> 0
B112: 1.25 | C112: =E10*YPER5 -> 0 | E112: =IF($E$10=0,0,(YVarExp-(YTotExp+YTotRet-J10))/($E$10*YPER5)) -> 0 | H112: =IF($E$10=0,0,(YTotExp-(YTotExp+YTotRet-J10))/($E$10*YPER5)) -> 0
A114: Developed by Extension Economists, Texas A&M AgriLife Extension Service, budgets@tamu.edu.
A116: Information presented is prepared solely as a general guide and not intended to recognize or predict the costs and returns from any one operation. Brand names are mentioned only as examples and imply no endorsement.

Sheet Livestock Budget
A1: Estimated Costs and Returns per Animal or Breeding Female
A3: Livestock Budget
A5: Number of Head of Livestock | D5: 0
A7: Enter Your Values in the cells highlighed in MAROON. | H7: Enterprise
A8: REVENUE | C8: Head | D8: Quantity | E8: Units | F8: $/Unit | G8: Total | H8: Total
B9: Males Sold | C9: 0 | D9: 0 | E9: CWT | F9: 0 | G9: =IF($D$5=0,0,C9/$D$5*D9*F9) -> 0 | H9: =+G9*$D$5 -> 0
B10: Females Sold | C10: 0 | D10: 0 | E10: CWT | F10: 0 | G10: =IF($D$5=0,0,C10/$D$5*D10*F10) -> 0 | H10: =+G10*$D$5 -> 0
B11: Cull Breeding Females | C11: 0 | D11: 0 | E11: CWT | F11: 0 | G11: 0 | H11: 0
B12: Cull Breeding Males | C12: 0 | D12: 0 | E12: CWT | F12: 0 | G12: 0 | H12: 0
B13: Stocker or Feed Animal | C13: 0 | D13: 0 | E13: CWT | F13: 0 | G13: 0 | H13: 0
B14: Other Revenue | C14: 0 | D14: 0 | E14: CWT | F14: 0 | G14: 0 | H14: 0
B15: Other Revenue | C15: 0 | D15: 0 | E15: CWT | F15: 0 | G15: 0 | H15: 0
B16: Other Revenue | C16: 0 | D16: 0 | E16: CWT | F16: 0 | G16: 0 | H16: 0
A18: Total Revenue | G18: =+SUM(G9:G17) -> 0 | H18: =+SUM(H9:H17) -> 0
H20: Enterprise
A21: VARIABLE COSTS | D21: Quantity | E21: Units | F21: $/Unit | G21: Total | H21: Total
A22: Production Costs
B23: Animal Purchase Price, if applicable | D23: 0 | E23: Cwt | F23: 0 | G23: =D23*F23 -> 0 | H23: =+G23*$D$5 -> 0
B24: Pasture | C24: =+SUM(G25:G28) -> 0
C25: Pasture 1 | D25: 0 | E25: Acre | F25: 0 | G25: =D25*F25 -> 0 | H25: =+G25*$D$5 -> 0
C26: Pasture 2 | D26: 0 | E26: Acre | F26: 0 | G26: 0 | H26: 0
C27: Pasture 3 | D27: 0 | E27: Acre | F27: 0 | G27: 0 | H27: 0
C28: Pasture 4 | D28: 0 | E28: Acre | F28: 0 | G28: 0 | H28: 0
B29: Feed | C29: =SUM(G30:G37) -> 0
C30: Hay | D30: 0 | E30: Bales | F30: 0 | G30: =D30*F30 -> 0 | H30: =+G30*$D$5 -> 0
C31: Supplement | D31: 0 | E31: Cwt,lb,etc | F31: 0 | G31: =D31*F31 -> 0 | H31: =+G31*$D$5 -> 0
C32: Salt Minerals | D32: 0 | E32: Cwt | F32: 0 | G32: 0 | H32: 0
C33: Other Feed | D33: 0 | E33: Cwt,lb,etc | F33: 0 | G33: 0 | H33: 0
C34: Other Feed | D34: 0 | E34: Cwt,lb,etc | F34: 0 | G34: 0 | H34: 0
C35: Other Feed | D35: 0 | E35: Cwt,lb,etc | F35: 0 | G35: 0 | H35: 0
C36: Other Feed | D36: 0 | E36: Cwt,lb,etc | F36: 0 | G36: 0 | H36: 0
C37: Other Feed | D37: 0 | E37: Cwt,lb,etc | F37: 0 | G37: 0 | H37: 0
B38: Health | C38: =SUM(G39:G48) -> 0
C39: Vet/Medicine 1 | D39: 0 | E39: Visit,dose,cc's, etc. | F39: 0 | G39: =D39*F39 -> 0 | H39: =+G39*$D$5 -> 0
C40: Vet/Medicine 2 | D40: 0 | E40: Visit,dose,cc's, etc. | F40: 0 | G40: 0 | H40: 0
C41: Vet/Medicine 3 | D41: 0 | E41: Visit,dose,cc's, etc. | F41: 0 | G41: 0 | H41: 0
C42: Vet/Medicine 4 | D42: 0 | E42: Visit,dose,cc's, etc. | F42: 0 | G42: 0 | H42: 0
C43: Vet/Medicine 5 | D43: 0 | E43: Visit,dose,cc's, etc. | F43: 0 | G43: 0 | H43: 0
C44: Vet/Medicine 6 | D44: 0 | E44: Visit,dose,cc's, etc. | F44: 0 | G44: 0 | H44: 0
C45: Vet/Medicine 7 | D45: 0 | E45: Visit,dose,cc's, etc. | F45: 0 | G45: 0 | H45: 0
C46: Vet/Medicine 8 | D46: 0 | E46: Visit,dose,cc's, etc. | F46: 0 | G46: 0 | H46: 0
C47: Vet/Medicine 9 | D47: 0 | E47: Visit,dose,cc's, etc. | F47: 0 | G47: 0 | H47: 0
C48: Vet/Medicine 10 | D48: 0 | E48: Visit,dose,cc's, etc. | F48: 0 | G48: 0 | H48: 0
B50: Fuel, Lube, Repair | D50: 1 | E50: Head | F50: 0 | G50: 0 | H50: 0
B52: Labor | D52: 0 | E52: Hours | F52: 0 | G52: 0 | H52: 0
B54: Other Variable Expense | D54: 0 | E54: Cwt,lb,etc | F54: 0 | G54: 0 | H54: 0
B55: Other Variable Expense | D55: 0 | E55: Cwt,lb,etc | F55: 0 | G55: 0 | H55: 0
B56: Other Variable Expense | D56: 0 | E56: Cwt,lb,etc | F56: 0 | G56: 0 | H56: 0
B57: Other Variable Expense | D57: 0 | E57: Cwt,lb,etc | F57: 0 | G57: 0 | H57: 0
B58: Other Variable Expense | D58: 0 | E58: Cwt,lb,etc | F58: 0 | G58: 0 | H58: 0
B59: Other Variable Expense | D59: 0 | E59: Cwt,lb,etc | F59: 0 | G59: 0 | H59: 0
B61: Operating Interest | F61: 0 | G61: =+SUM(G23:G59)/2*F61 -> 0 | H61: 0
A63: Total Variable Costs | G63: =+SUM(G23:G62) -> 0 | H63: =+SUM(H23:H62) -> 0
A65: Planned Returns Above Variable Costs | G65: =+G18-G63 -> 0 | H65: =+H18-H63 -> 0
B67: Breakeven Price to Cover Variable Costs | E67: =IF((H101/100+C13*D13)=0,0,(G63-SUM(G11:G12,G14:G16))/(H101/100+C13/D5*D13)) -> 0 | F67: =+E9 -> CWT
H69: Enterprise
A70: FIXED COSTS | D70: Quantity | E70: Units | F70: $/Unit | G70: Total | H70: Total
B71: Depreciation - Equipment | D71: 0 | E71: Head,$,etc | F71: 0 | G71: =D71*F71 -> 0 | H71: =+G71*$D$5 -> 0
B72: Depreciation - Livestock | D72: 0 | E72: Head,$,etc | F72: 0 | G72: =D72*F72 -> 0 | H72: 0
B73: Equipment Investment | D73: 0 | E73: Head,$,etc | F73: 0 | G73: 0 | H73: 0
B74: Insurance | D74: 0 | E74: Head,$,etc | F74: 0 | G74: 0 | H74: 0
B75: Management Fee | D75: 0 | E75: Head,$,etc | F75: 0 | G75: 0 | H75: 0
B76: Owner/Operator Labor | D76: 0 | E76: Head,$,etc | F76: 0 | G76: 0 | H76: 0
B77: Salaried Labor | D77: 0 | E77: Head,$,etc | F77: 0 | G77: 0 | H77: 0
B78: Other Fixed Expense | D78: 0 | E78: Head,$,etc | F78: 0 | G78: 0 | H78: 0
B79: Other Fixed Expense | D79: 0 | E79: Head,$,etc | F79: 0 | G79: 0 | H79: 0
B80: Other Fixed Expense | D80: 0 | E80: Head,$,etc | F80: 0 | G80: 0 | H80: 0
B81: Other Fixed Expense | D81: 0 | E81: Head,$,etc | F81: 0 | G81: 0 | H81: 0
B82: Other Fixed Expense | D82: 0 | E82: Head,$,etc | F82: 0 | G82: 0 | H82: 0
D84: Total Fixed Costs | G84: =+SUM(G71:G83) -> 0 | H84: =+SUM(H71:H83) -> 0
D86: Total Specified Costs | G86: =+G63+G84 -> 0 | H86: =+H63+H84 -> 0
D88: Returns Above Specifiied Costs | G88: =+G18-G86 -> 0 | H88: =+H18-H86 -> 0
B90: Breakeven Price to Cover Total Costs | E90: =IF((H101/100+C13*D13)=0,0,(G86-SUM(G11:G12,G14:G16))/(H101/100+C13/D5*D13)) -> 0 | F90: =+F67 -> CWT
B93: Sensitivity Analysis for Your Breeding Herd or Flock Values
B94: Your Weaning Percent | C94: Your Gross Sales per Head | D94: Pounds Produced per Head | E94: ="Your Breakeven Pay Weight to Cover Total Cost" -> Your Breakeven Pay Weight to Cover Total Cost | G94: Your Average Breakeven Price to Cover Total Cost
B95: =+B96-0.03 -> -0.06 | C95: =+IF($B$97=0,0,YTotRet-$G$9-$G$10+($G$9+$G$10)*B95/$B$97) -> 0 | D95: =IF($B$97=0,0,$H$101*B95/$B$97+$H$102) -> 0 | E95: =IF($C$97=0,0,(YTotExp-($G$18-$G$9-$G$10))/(YPrice/100)/(B95-$C$11/$D$5)) -> 0 | G95: =IF(D95-$H$102=0,0,(YTotExp-($G$18-$G$9-$G$10))/(D95-$H$102)*100) -> 0
B96: =+B97-0.03 -> -0.03 | C96: =+IF($B$97=0,0,YTotRet-$G$9-$G$10+($G$9+$G$10)*B96/$B$97) -> 0 | D96: =IF($B$97=0,0,$H$101*B96/$B$97+$H$102) -> 0 | E96: =IF($C$97=0,0,(YTotExp-($G$18-$G$9-$G$10))/(YPrice/100)/(B96-$C$11/$D$5)) -> 0 | G96: =IF(D96-$H$102=0,0,(YTotExp-($G$18-$G$9-$G$10))/(D96-$H$102)*100) -> 0
B97: 0 | C97: =+G18 -> 0 | D97: =H101+H102 -> 0 | E97: =IF($C$97=0,0,(YTotExp-($G$18-$G$9-$G$10))/(YPrice/100)/(B97-$C$11/$D$5)) -> 0 | G97: =IF(D97-$H$102=0,0,(YTotExp-($G$18-$G$9-$G$10))/(D97-$H$102)*100) -> 0
B98: =+B97+0.03 -> 0.03 | C98: =+IF($B$97=0,0,YTotRet-$G$9-$G$10+($G$9+$G$10)*B98/$B$97) -> 0 | D98: =IF($B$97=0,0,$H$101*B98/$B$97+$H$102) -> 0 | E98: =IF($C$97=0,0,(YTotExp-($G$18-$G$9-$G$10))/(YPrice/100)/(B98-$C$11/$D$5)) -> 0 | G98: =IF(D98-$H$102=0,0,(YTotExp-($G$18-$G$9-$G$10))/(D98-$H$102)*100) -> 0
B99: =+B98+0.03 -> 0.06 | C99: =+IF($B$97=0,0,YTotRet-$G$9-$G$10+($G$9+$G$10)*B99/$B$97) -> 0 | D99: =IF($B$97=0,0,$H$101*B99/$B$97+$H$102) -> 0 | E99: =IF($C$97=0,0,(YTotExp-($G$18-$G$9-$G$10))/(YPrice/100)/(B99-$C$11/$D$5)) -> 0 | G99: =IF(D99-$H$102=0,0,(YTotExp-($G$18-$G$9-$G$10))/(D99-$H$102)*100) -> 0
C101: Your Male Price | F101: =+F9 -> 0 | H101: =IF(D5=0,0,(C9*D9+C10*D10)*100/D5) -> 0
C102: Your Female Price | F102: =+F10 -> 0 | H102: =IF(D5=0,0,(C11*D11+C12*D12)*100/D5) -> 0
C103: Your Weighted Average Price ($/cwt) | F103: =+IF((C9*D9+C10*D10)=0,F13,(G9+G10)/((C9*D9+C10*D10)/D5)) -> 0
C105: Your Stocker or Feeder Breakeven Sensitivity Analysis
C106: Your Average Daily Gain | E106: 0 | F106: Pounds per Day
C107: =+"Your Animal"&IF(M25="Stocker"," Grazing"," Feeding")&" Days" -> Your Animal Feeding Days | E107: 0 | F107: Days
C108: Your Sale Shrink | E108: 0
C109: Average Daily Gain (Pounds/day) | D109: Net Pay Weight with Shrink (Pounds) | F109: =+"Purchase Weight (Pounds/Head): "&D23*100 -> Purchase Weight (Pounds/Head): 0 | H109: Sales Price/Cwt of $Total
F110: ="Sales Price "&IF(F13="",".00",TEXT(F13,"#.00")) -> Sales Price .00 | H110: ="Purchase Price "&IF(F23="",".00",TEXT(F23,"#.00")) -> Purchase Price .00
F111: Breakeven Purchase Price ($/CWT) | H111: Breakeven Sales Price ($/CWT)
C112: =+C114*1.2 -> 0 | D112: =+(C112*$E$107+$D$23*100)*(1-$E$108) -> 0 | F112: =IF($D$23=0,0,(((D112*$F$13/100*($C$13/$D$5))-($G$86-SUM($G$14:$G$16)-$G$23))/(100*$D$23))*100) -> 0 | H112: =IF($C$13=0,0,($G$86-SUM($G$14:$G$16))/(D112*($C$13/$D$5)*100)) -> 0
C113: =+C114*1.1 -> 0 | D113: =+(C113*$E$107+$D$23*100)*(1-$E$108) -> 0 | F113: =IF($D$23=0,0,(((D113*$F$13/100*($C$13/$D$5))-($G$86-SUM($G$14:$G$16)-$G$23))/(100*$D$23))*100) -> 0 | H113: =IF($C$13=0,0,($G$86-SUM($G$14:$G$16))/(D113*($C$13/$D$5)*100)) -> 0
C114: =+E106 -> 0 | D114: =+(C114*$E$107+$D$23*100)*(1-$E$108) -> 0 | F114: =IF($D$23=0,0,(((D114*$F$13/100*($C$13/$D$5))-($G$86-SUM($G$14:$G$16)-$G$23))/(100*$D$23))*100) -> 0 | H114: =IF($C$13=0,0,($G$86-SUM($G$14:$G$16))/(D114*($C$13/$D$5)*100)) -> 0
C115: =+C114*0.9 -> 0 | D115: =+(C115*$E$107+$D$23*100)*(1-$E$108) -> 0 | F115: =IF($D$23=0,0,(((D115*$F$13/100*($C$13/$D$5))-($G$86-SUM($G$14:$G$16)-$G$23))/(100*$D$23))*100) -> 0 | H115: =IF($C$13=0,0,($G$86-SUM($G$14:$G$16))/(D115*($C$13/$D$5)*100)) -> 0
C116: =+C114*0.8 -> 0 | D116: =+(C116*$E$107+$D$23*100)*(1-$E$108) -> 0 | F116: =IF($D$23=0,0,(((D116*$F$13/100*($C$13/$D$5))-($G$86-SUM($G$14:$G$16)-$G$23))/(100*$D$23))*100) -> 0 | H116: =IF($C$13=0,0,($G$86-SUM($G$14:$G$16))/(D116*($C$13/$D$5)*100)) -> 0

Sheet Crop Budget
A1: Estimated Costs and Returns per Acre
A3: Crop Enterprise
A5: Number of Acres of Crop | D5: 0
A7: Enter Your Values in the cells highlighed in MAROON. | G7: Enterprise
A8: REVENUE | C8: Quantity | D8: Units | E8: $/Unit | F8: Total | G8: Total
B9: Primary Product | C9: 0 | D9: Cwt,lb,etc | E9: 0 | F9: =C9*E9 -> 0 | G9: =+F9*$D$5 -> 0
B10: Secondary Product | C10: 0 | D10: Cwt,lb,etc | E10: 0 | F10: =C10*E10 -> 0 | G10: =+F10*$D$5 -> 0
B11: Secondary Product | C11: 0 | D11: Cwt,lb,etc | E11: 0 | F11: 0 | G11: 0
B12: Secondary Product | C12: 0 | D12: Cwt,lb,etc | E12: 0 | F12: 0 | G12: 0
B13: Secondary Product | C13: 0 | D13: Cwt,lb,etc | E13: 0 | F13: 0 | G13: 0
B14: Secondary Product | C14: 0 | D14: Cwt,lb,etc | E14: 0 | F14: 0 | G14: 0
B15: Secondary Product | C15: 0 | D15: Cwt,lb,etc | E15: 0 | F15: 0 | G15: 0
B16: Secondary Product | C16: 0 | D16: Cwt,lb,etc | E16: 0 | F16: 0 | G16: 0
A18: Total Revenue | F18: =+SUM(F9:F16) -> 0 | G18: =+SUM(G9:G16) -> 0
G20: Enterprise
A21: VARIABLE COSTS | C21: Quantity | D21: Units | E21: $/Unit | F21: Total | G21: Total
A23: Custom Field and Harvest Operations
B24: Custom Field Operation 1 | C24: 0 | D24: Acre | E24: 0 | F24: =C24*E24 -> 0 | G24: =+F24*$D$5 -> 0
B25: Custom Field Operation 2 | C25: 0 | D25: Acre | E25: 0 | F25: 0 | G25: 0
B26: Custom Field Operation 3 | C26: 0 | D26: Acre | E26: 0 | F26: 0 | G26: 0
B27: Custom Field Operation 4 | C27: 0 | D27: Acre | E27: 0 | F27: 0 | G27: 0
B28: Custom Field Operation 5 | C28: 0 | D28: Acre | E28: 0 | F28: 0 | G28: 0
B29: Custom Field Operation 6 | C29: 0 | D29: Acre | E29: 0 | F29: 0 | G29: 0
A30: Machinery Expenses
B31: Diesel | C31: 0 | D31: Gallon | E31: 0 | F31: =C31*E31 -> 0 | G31: 0
B32: Gasoline | C32: 0 | D32: Gallon | E32: 0 | F32: 0 | G32: 0
B33: Lube | C33: 0 | D33: Acre | E33: 0 | F33: 0 | G33: 0
B34: Repairs | C34: 0 | D34: Acre | E34: 0 | F34: 0 | G34: 0
B35: Other Machinery Expense 1 | C35: 0 | D35: Acre | E35: 0 | F35: 0 | G35: 0
B36: Other Machinery Expense 2 | C36: 0 | D36: Acre | E36: 0 | F36: 0 | G36: 0
A37: Labor
B38: Labor 1 | C38: 0 | D38: Hour | E38: 0 | F38: =C38*E38 -> 0 | G38: 0
B39: Labor 2 | C39: 0 | D39: Hour | E39: 0 | F39: 0 | G39: 0
B40: Labor 3 | C40: 0 | D40: Hour | E40: 0 | F40: 0 | G40: 0
B41: Labor 4 | C41: 0 | D41: Hour | E41: 0 | F41: 0 | G41: 0
B42: Labor 5 | C42: 0 | D42: Hour | E42: 0 | F42: 0 | G42: 0
B43: Irrigation Labor | C43: 0 | D43: Hour | E43: 0 | F43: 0 | G43: 0
A44: Seed or Transplants
B45: Seed | C45: 0 | D45: Pound | E45: 0 | F45: =C45*E45 -> 0 | G45: 0
B46: Seed Treatment | C46: 0 | D46: Pound | E46: 0 | F46: 0 | G46: 0
B47: Seed Fee | C47: 0 | D47: Pound | E47: 0 | F47: 0 | G47: 0
B48: Transplants | C48: 0 | D48: Thousand | E48: 0 | F48: 0 | G48: 0
B49: Mulch | C49: 0 | D49: Foot | E49: 0 | F49: 0 | G49: 0
B50: Other Seed or Transplant | C50: 0 | D50: Pound | E50: 0 | F50: 0 | G50: 0
A51: Fertilizer and Lime
B52: Fertlizer 1 | C52: 0 | D52: Pound | E52: 0 | F52: =C52*E52 -> 0 | G52: 0
B53: Fertlizer 2 | C53: 0 | D53: Pound | E53: 0 | F53: 0 | G53: 0
B54: Fertlizer 3 | C54: 0 | D54: Pound | E54: 0 | F54: 0 | G54: 0
B55: Fertlizer 4 | C55: 0 | D55: Pound | E55: 0 | F55: 0 | G55: 0
B56: Fertlizer 5 | C56: 0 | D56: Pound | E56: 0 | F56: 0 | G56: 0
B57: Lime | C57: 0 | D57: Ton | E57: 0 | F57: 0 | G57: 0
B58: Other Soil Amendment 1 | C58: 0 | D58: Pound | E58: 0 | F58: 0 | G58: 0
B59: Other Soil Amendment 2 | C59: 0 | D59: Pound | E59: 0 | F59: 0 | G59: 0
A60: Herbicides
B61: Herbicide 1 | C61: 0 | D61: Lb,Oz,Acre | E61: 0 | F61: =C61*E61 -> 0 | G61: 0
B62: Herbicide 2 | C62: 0 | D62: Lb,Oz,Acre | E62: 0 | F62: 0 | G62: 0
B63: Herbicide 3 | C63: 0 | D63: Lb,Oz,Acre | E63: 0 | F63: 0 | G63: 0
B64: Herbicide 4 | C64: 0 | D64: Lb,Oz,Acre | E64: 0 | F64: 0 | G64: 0
B65: Herbicide 5 | C65: 0 | D65: Lb,Oz,Acre | E65: 0 | F65: 0 | G65: 0
B66: Herbicide 6 | C66: 0 | D66: Lb,Oz,Acre | E66: 0 | F66: 0 | G66: 0
A67: Insecticides
B68: Insecticide 1 | C68: 0 | D68: Lb,Oz,Acre | E68: 0 | F68: =C68*E68 -> 0 | G68: 0
B69: Insecticide 2 | C69: 0 | D69: Lb,Oz,Acre | E69: 0 | F69: 0 | G69: 0
B70: Insecticide 3 | C70: 0 | D70: Lb,Oz,Acre | E70: 0 | F70: 0 | G70: 0
B71: Insecticide 4 | C71: 0 | D71: Lb,Oz,Acre | E71: 0 | F71: 0 | G71: 0
B72: Insecticide 5 | C72: 0 | D72: Lb,Oz,Acre | E72: 0 | F72: 0 | G72: 0
B73: Insecticide 6 | C73: 0 | D73: Lb,Oz,Acre | E73: 0 | F73: 0 | G73: 0
A74: Fungicides
B75: Fungicide 1 | C75: 0 | D75: Lb,Oz,Acre | E75: 0 | F75: =C75*E75 -> 0 | G75: 0
B76: Fungicide 2 | C76: 0 | D76: Lb,Oz,Acre | E76: 0 | F76: 0 | G76: 0
B77: Fungicide 3 | C77: 0 | D77: Lb,Oz,Acre | E77: 0 | F77: 0 | G77: 0
B78: Fungicide 4 | C78: 0 | D78: Lb,Oz,Acre | E78: 0 | F78: 0 | G78: 0
B79: Fungicide 5 | C79: 0 | D79: Lb,Oz,Acre | E79: 0 | F79: 0 | G79: 0
B80: Fungicide 6 | C80: 0 | D80: Lb,Oz,Acre | E80: 0 | F80: 0 | G80: 0
A81: Growth Regulators
B82: Growth Regulator 1 | C82: 0 | D82: Lb,Oz,Acre | E82: 0 | F82: =C82*E82 -> 0 | G82: 0
B83: Growth Regulator 2 | C83: 0 | D83: Lb,Oz,Acre | E83: 0 | F83: 0 | G83: 0
B84: Growth Regulator 3 | C84: 0 | D84: Lb,Oz,Acre | E84: 0 | F84: 0 | G84: 0
B85: Growth Regulator 4 | C85: 0 | D85: Lb,Oz,Acre | E85: 0 | F85: 0 | G85: 0
B86: Growth Regulator 5 | C86: 0 | D86: Lb,Oz,Acre | E86: 0 | F86: 0 | G86: 0
B87: Growth Regulator 6 | C87: 0 | D87: Lb,Oz,Acre | E87: 0 | F87: 0 | G87: 0
A88: Other Chemicals
B89: Fumigant | C89: 0 | D89: Lb,Oz,Acre | E89: 0 | F89: =C89*E89 -> 0 | G89: 0
B90: Other Chemical 1 | C90: 0 | D90: Lb,Oz,Acre | E90: 0 | F90: 0 | G90: =+F90*$D$5 -> 0
B91: Other Chemical 2 | C91: 0 | D91: Lb,Oz,Acre | E91: 0 | F91: 0 | G91: =+F91*$D$5 -> 0
B92: Other Chemical 3 | C92: 0 | D92: Lb,Oz,Acre | E92: 0 | F92: 0 | G92: =+F92*$D$5 -> 0
B93: Other Chemical 4 | C93: 0 | D93: Lb,Oz,Acre | E93: 0 | F93: 0 | G93: =+F93*$D$5 -> 0
B94: Other Chemical 5 | C94: 0 | D94: Lb,Oz,Acre | E94: 0 | F94: 0 | G94: =+F94*$D$5 -> 0
A95: Irrigation
B96: Well Expense | C96: 0 | D96: Acre | E96: 0 | F96: =C96*E96 -> 0 | G96: =+F96*$D$5 -> 0
B97: Pump Fuel | C97: 0 | D97: Mcf,kWh,Gallon | E97: 0 | F97: 0 | G97: 0
B98: Pump Expense | C98: 0 | D98: Acre | E98: 0 | F98: 0 | G98: 0
B99: Irrigation Equipment Expense | C99: 0 | D99: Acre | E99: 0 | F99: 0 | G99: 0
B100: Repairs | C100: 0 | D100: Acre | E100: 0 | F100: 0 | G100: 0
B101: Drip Tape | C101: 0 | D101: Foot,Acre | E101: 0 | F101: 0 | G101: 0
B102: Water Cost | C102: 0 | D102: AcIn,Gallon | E102: 0 | F102: 0 | G102: 0
B103: Other Irrigation Expense 1 | C103: 0 | D103: Acre | E103: 0 | F103: 0 | G103: 0
B104: Other Irrigation Expense 2 | C104: 0 | D104: Acre | E104: 0 | F104: 0 | G104: 0
A105: Miscellaneous Expenses
B106: Crop Insurance | C106: 0 | D106: Acre | E106: 0 | F106: =C106*E106 -> 0 | G106: 0
B107: Other Variable Expense 1 | C107: 0 | D107: Enter Unit | E107: 0 | F107: 0 | G107: 0
B108: Other Variable Expense 2 | C108: 0 | D108: Enter Unit | E108: 0 | F108: 0 | G108: 0
B109: Other Variable Expense 3 | C109: 0 | D109: Enter Unit | E109: 0 | F109: 0 | G109: 0
B110: Other Variable Expense 4 | C110: 0 | D110: Enter Unit | E110: 0 | F110: 0 | G110: 0
B111: Other Variable Expense 5 | C111: 0 | D111: Enter Unit | E111: 0 | F111: 0 | G111: 0
B112: Other Variable Expense 6 | C112: 0 | D112: Enter Unit | E112: 0 | F112: 0 | G112: 0
B113: Other Variable Expense 7 | C113: 0 | D113: Enter Unit | E113: 0 | F113: 0 | G113: 0
B114: Other Variable Expense 8 | C114: 0 | D114: Enter Unit | E114: 0 | F114: 0 | G114: 0
B116: Operating Interest | E116: 0 | F116: =+SUM(F23:F115)/2*E116 -> 0 | G116: =+F116*$D$6 -> 0
A118: Total Variable Costs | F118: =+SUM(F23:F116) -> 0 | G118: =+SUM(G23:G116) -> 0
A120: Planned Returns Above Variable Costs | F120: =+F18-F118 -> 0 | G120: =+G18-G118 -> 0
B122: Breakeven Price to Cover Variable Costs | E122: =+IF(C9=0,0,F118-SUM(F10:F16)/C9) -> 0 | F122: =+D9 -> Cwt,lb,etc
G124: Enterprise
A125: FIXED COSTS | C125: Quantity | D125: Units | E125: $/Unit | F125: Total | G125: Total
B126: Land Rent or Expense | C126: 1 | D126: Acre | E126: 0 | F126: =C126*E126 -> 0 | G126: =+F126*$D$6 -> 0
B127: Depreciation - Equipment | C127: 1 | D127: Acre | E127: 0 | F127: =C127*E127 -> 0 | G127: 0
B128: Equipment Investment | C128: 0 | D128: $ | E128: 0 | F128: 0 | G128: 0
B129: Insurance | C129: 1 | D129: Acre | E129: 0 | F129: 0 | G129: 0
B130: Management Fee | C130: 1 | D130: Acre | E130: 0 | F130: 0 | G130: 0
B131: Owner/Operator Labor | C131: 0 | D131: Acre | E131: 0 | F131: 0 | G131: 0
B132: Salaried Labor | C132: 1 | D132: Acre,$,etc | E132: 0 | F132: 0 | G132: 0
B133: Other Fixed Expense | C133: 0 | D133: Acre,$,etc | E133: 0 | F133: 0 | G133: 0
B134: Other Fixed Expense | C134: 0 | D134: Acre,$,etc | E134: 0 | F134: 0 | G134: 0
B135: Other Fixed Expense | C135: 0 | D135: Acre,$,etc | E135: 0 | F135: 0 | G135: 0
B136: Other Fixed Expense | C136: 0 | D136: Acre,$,etc | E136: 0 | F136: 0 | G136: 0
B137: Other Fixed Expense | C137: 0 | D137: Acre,$,etc | E137: 0 | F137: 0 | G137: 0
D139: Total Fixed Costs | F139: =+SUM(F126:F137) -> 0 | G139: =+SUM(G126:G137) -> 0
D141: Total Specified Costs | F141: =+F118+F139 -> 0 | G141: =+G118+G139 -> 0
D143: Returns Above Specifiied Costs | F143: =+F18-F141 -> 0 | G143: =+G18-G141 -> 0
B145: Breakeven Price to Cover Total Costs | E145: =+IF(C9=0,0,F141-SUM(F10:F16)/C9) -> 0 | F145: =+D9 -> Cwt,lb,etc
B147: Breakeven Prices for Your Crop
E148: Price To Cover | G148: Price To Cover
B149: Yield | C149: Yield | E149: Variable | G149: Total
B150: Percent | C150: =+D9 -> Cwt,lb,etc | E150: Costs | G150: Costs
B151: 0.75 | C151: =+$C$153*B151 -> 0 | E151: =+IF(C151=0,0,($F$118-SUM($F$10:$F$16))/C151) -> 0 | G151: =+IF(C151=0,0,($F$141-SUM($F$10:$F$16))/C151) -> 0
B152: 0.9 | C152: =+$C$153*B152 -> 0 | E152: =+IF(C152=0,0,($F$118-SUM($F$10:$F$16))/C152) -> 0 | G152: =+IF(C152=0,0,($F$141-SUM($F$10:$F$16))/C152) -> 0
B153: 1 | C153: =+C9 -> 0 | E153: =+IF(C153=0,0,($F$118-SUM($F$10:$F$16))/C153) -> 0 | G153: =+IF(C153=0,0,($F$141-SUM($F$10:$F$16))/C153) -> 0
B154: 1.1 | C154: 0 | E154: =+IF(C154=0,0,($F$118-SUM($F$10:$F$16))/C154) -> 0 | G154: =+IF(C154=0,0,($F$141-SUM($F$10:$F$16))/C154) -> 0
B155: 1.25 | C155: 0 | E155: =+IF(C155=0,0,($F$118-SUM($F$10:$F$16))/C155) -> 0 | G155: =+IF(C155=0,0,($F$141-SUM($F$10:$F$16))/C155) -> 0

Sheet Comparative Returns - Cash Rent
A1: Comparative Returns - Cash Rent
B3: Returns Above Total Specified Expenses | E3: Total Direct Expenses | H3: Breakeven Yield to Cover Total Costs at Price Entered
B4: Total Costs | C4: Variable Costs | E4: Total Costs | F4: Variable Costs | H4: Price | I4: Units | J4: Total Costs | K4: Variable Costs
A5: FIELD CROPS
A7: =+Soybeans!A3 -> Soybeans | B7: =+Soybeans!TotRet -> 14.85322651 | C7: =+Soybeans!VarRet -> 73.32725523 | E7: =+Soybeans!TotExp -> 305.1467735 | F7: =+Soybeans!VarExp -> 246.6727448 | H7: =+Soybeans!Price -> 12.8 | I7: =+Soybeans!Unit -> Bushel | J7: =+IF($H7=0,0,E7/$H7) -> 23.83959168 | K7: =+IF($H7=0,0,F7/$H7) -> 19.27130819
A8: =+RRSoybeans!A3 -> Roundup Ready Soybeans | B8: =+RRSoybeans!TotRet -> -27.82730109 | C8: =+RRSoybeans!VarRet -> 29.7145657 | E8: =+RRSoybeans!TotExp -> 309.4273011 | F8: =+RRSoybeans!VarExp -> 251.8854343 | H8: =+RRSoybeans!Price -> 12.8 | I8: =+RRSoybeans!Unit -> Bushel | J8: =+IF($H8=0,0,E8/$H8) -> 24.1740079 | K8: =+IF($H8=0,0,F8/$H8) -> 19.67854955
A9: =+Rice!A3 -> First Crop Rice (Jefferson-Liberty Counties) | B9: =+Rice!TotRet -> -79.37814715 | C9: =+Rice!VarRet -> 77.73684887 | E9: =+Rice!TotExp -> 959.3781471 | F9: =+Rice!VarExp -> 802.2631511 | H9: =+Rice!Price -> 7.26 | I9: =+Rice!Unit -> CWT | J9: =+IF($H9=0,0,E9/$H9) -> 132.1457503 | K9: =+IF($H9=0,0,F9/$H9) -> 110.5045663
A11: LIVESTOCK
A13: =+#REF! ->  | B13: =+[0]!TotRet ->  | C13: =+[0]!VarRet ->  | E13: =+[0]!TotExp ->  | F13: =+[0]!VarExp ->  | H13: =+[0]!Price ->  | I13: =+[0]!Unit ->  | J13: =+IF($H13=0,0,E13/$H13) -> 
A14: =+#REF! ->  | B14: =+[0]!TotRet ->  | C14: =+[0]!VarRet ->  | E14: =+[0]!TotExp ->  | F14: =+[0]!VarExp ->  | H14: =+[0]!Price ->  | I14: =+[0]!Unit -> 
A15: =+#REF! ->  | B15: =+[0]!TotRet ->  | C15: =+[0]!VarRet ->  | E15: =+[0]!TotExp ->  | F15: =+[0]!VarExp ->  | H15: =+[0]!Price ->  | I15: =+[0]!Unit ->  | J15: =+IF($H15=0,0,E15/$H15) ->  | K15: =+IF($H15=0,0,F15/$H15) -> 

Sheet Comparative Returns-Share Rent
A1: Comparative Returns - Share Rent
A3: Variable Costs to the right of Total Costs | B3: Returns Above Total Specified Expenses | F3: Total Direct Expenses | J3: Breakeven Yield to Cover Total Costs at Price Entered | P3: Returns Above Variable Specified Expenses | T3: Variable Direct Expenses | X3: Breakeven Yield to Cover Variavle Costs at Price Entered
B4: Total | C4: Tenant | D4: Landlord | F4: Total | G4: Tenant | H4: Landlord | J4: Price | K4: Units | L4: Total | M4: Tenant | N4: Landlord | P4: Total | Q4: Tenant | R4: Landlord | T4: Total | U4: Tenant | V4: Landlord | X4: Price | Y4: Units | Z4: Total | AA4: Tenant | AB4: Landlord
A5: FIELD CROPS
A7: =+Soybeans!A3 -> Soybeans | B7: =+Soybeans!TotRet -> 14.85322651 | C7: =+Soybeans!TTotRet -> 14.85322651 | D7: =+Soybeans!LTotRet -> 0 | F7: =+Soybeans!TotExp -> 305.1467735 | G7: =+Soybeans!TTotExp -> 305.1467735 | H7: =+Soybeans!LTotExp -> 0 | J7: =+Soybeans!Price -> 12.8 | K7: =+Soybeans!Unit -> Bushel | L7: =+IF($J7=0,0,F7/$J7) -> 23.83959168 | M7: 23.83959168 | N7: 0 | P7: =+Soybeans!VarRet -> 73.32725523 | Q7: =+Soybeans!TVarRet -> 73.32725523 | R7: =+Soybeans!LVarRet -> 0 | T7: =+Soybeans!VarExp -> 246.6727448 | U7: =+Soybeans!TVarExp -> 246.6727448 | V7: =+Soybeans!LVarExp -> 0 | X7: =+Soybeans!Price -> 12.8 | Y7: =+Soybeans!Unit -> Bushel | Z7: =+IF($J7=0,0,T7/$J7) -> 19.27130819 | AA7: 19.27130819 | AB7: 0
A8: =+RRSoybeans!A3 -> Roundup Ready Soybeans | B8: =+RRSoybeans!TotRet -> -27.82730109 | C8: =+RRSoybeans!TTotRet -> -27.82730109 | D8: =+RRSoybeans!LTotRet -> 0 | F8: =+RRSoybeans!TotExp -> 309.4273011 | G8: =+RRSoybeans!TTotExp -> 309.4273011 | H8: =+RRSoybeans!LTotExp -> 0 | J8: =+RRSoybeans!Price -> 12.8 | K8: =+RRSoybeans!Unit -> Bushel | L8: 24.1740079 | M8: 24.1740079 | N8: 0 | P8: =+RRSoybeans!VarRet -> 29.7145657 | Q8: =+RRSoybeans!TVarRet -> 29.7145657 | R8: =+RRSoybeans!LVarRet -> 0 | T8: =+RRSoybeans!VarExp -> 251.8854343 | U8: =+RRSoybeans!TVarExp -> 251.8854343 | V8: =+RRSoybeans!LVarExp -> 0 | X8: =+RRSoybeans!Price -> 12.8 | Y8: =+RRSoybeans!Unit -> Bushel | Z8: 19.67854955 | AA8: 19.67854955 | AB8: 0
A9: =+Rice!A3 -> First Crop Rice (Jefferson-Liberty Counties) | B9: =+Rice!TotRet -> -79.37814715 | C9: =+Rice!TTotRet -> -79.37814715 | D9: =+Rice!LTotRet -> 0 | F9: =+Rice!TotExp -> 959.3781471 | G9: =+Rice!TTotExp -> 959.3781471 | H9: =+Rice!LTotExp -> 0 | J9: =+Rice!Price -> 7.26 | K9: =+Rice!Unit -> CWT | L9: =+IF($J9=0,0,F9/$J9) -> 132.1457503 | M9: =+IF($J9=0,0,G9/$J9) -> 132.1457503 | N9: =+IF($J9=0,0,H9/$J9) -> 0 | P9: =+Rice!VarRet -> 77.73684887 | Q9: =+Rice!TVarRet -> 77.73684887 | R9: =+Rice!LVarRet -> 0 | T9: =+Rice!VarExp -> 802.2631511 | U9: =+Rice!TVarExp -> 802.2631511 | V9: =+Rice!LVarExp -> 0 | X9: =+Rice!Price -> 7.26 | Y9: =+Rice!Unit -> CWT | Z9: =+IF($J9=0,0,T9/$J9) -> 110.5045663 | AA9: =+IF($J9=0,0,U9/$J9) -> 110.5045663 | AB9: =+IF($J9=0,0,V9/$J9) -> 0
A11: LIVESTOCK
A13: =+#REF! ->  | B13: =+[0]!TotRet ->  | F13: =+[0]!TotExp ->  | J13: =+[0]!Price ->  | K13: =+[0]!Unit ->  | L13: =+IF($J13=0,0,F13/$J13) ->  | P13: =+[0]!VarRet ->  | T13: =+[0]!VarExp ->  | X13: =+[0]!Price ->  | Y13: =+[0]!Unit ->  | Z13: =+IF($J13=0,0,T13/$J13) -> 
A14: =+#REF! ->  | B14: =+[0]!TotRet ->  | F14: =+[0]!TotExp ->  | J14: =+[0]!Price ->  | K14: =+[0]!Unit ->  | L14: =+IF($J14=0,0,F14/$J14) ->  | P14: =+[0]!VarRet ->  | T14: =+[0]!VarExp ->  | X14: =+[0]!Price ->  | Y14: =+[0]!Unit ->  | Z14: =+IF($J14=0,0,T14/$J14) -> 
A15: =+#REF! ->  | B15: =+[0]!TotRet ->  | F15: =+[0]!TotExp ->  | J15: =+[0]!Price ->  | K15: =+[0]!Unit ->  | L15: =+IF($J15=0,0,F15/$J15) ->  | P15: =+[0]!VarRet ->  | T15: =+[0]!VarExp ->  | X15: =+[0]!Price ->  | Y15: =+[0]!Unit ->  | Z15: =+IF($J15=0,0,T15/$J15) -> 

Sheet Your Returns - Cash Rent
A1: Your Returns - Cash Rent
B3: Quantity | C3: Returns Above Total Specified Expenses | F3: Total Direct Expenses | I3: Breakeven Yield to Cover Total Costs at Price Entered
B4: Acres, AUs, or Head | C4: Total Costs | D4: Variable Costs | F4: Total Costs | G4: Variable Costs | I4: Price | J4: Units | K4: Total Costs | L4: Variable Costs
A5: FIELD CROPS
A7: =+Soybeans!A3 -> Soybeans | B7: =+Soybeans!E7 -> 0 | C7: =+Soybeans!YTotRet -> 0 | D7: =+Soybeans!YVarRet -> 0 | F7: =+Soybeans!YTotExp -> 0 | G7: =+Soybeans!YVarExp -> 0 | I7: =+Soybeans!YPrice -> 0 | J7: =+Soybeans!Unit -> Bushel | K7: =+IF($I7=0,0,F7/$I7) -> 0 | L7: =+IF($I7=0,0,G7/$I7) -> 0
A8: =+RRSoybeans!A3 -> Roundup Ready Soybeans | B8: =+RRSoybeans!E7 -> 0 | C8: =+RRSoybeans!YTotRet -> 0 | D8: =+RRSoybeans!YVarRet -> 0 | F8: =+RRSoybeans!YTotExp -> 0 | G8: =+RRSoybeans!YVarExp -> 0 | I8: =+RRSoybeans!YPrice -> 0 | J8: =+RRSoybeans!Unit -> Bushel | K8: =+IF($I8=0,0,F8/$I8) -> 0 | L8: =+IF($I8=0,0,G8/$I8) -> 0
A9: =+Rice!A3 -> First Crop Rice (Jefferson-Liberty Counties) | B9: =+Rice!E7 -> 0 | C9: =+Rice!YTotRet -> 0 | D9: =+Rice!YVarRet -> 0 | F9: =+Rice!YTotExp -> 0 | G9: =+Rice!YVarExp -> 0 | I9: =+Rice!YPrice -> 0 | J9: =+Rice!Unit -> CWT | K9: =+IF($I9=0,0,F9/$I9) -> 0 | L9: =+IF($I9=0,0,G9/$I9) -> 0
A11: LIVESTOCK
A13: =+#REF! ->  | B13: =+#REF! ->  | C13: =+[0]!YTotRet ->  | D13: =+[0]!YVarRet ->  | F13: =+[0]!YTotExp ->  | G13: =+[0]!YVarExp ->  | I13: =+[0]!YPrice ->  | J13: =+[0]!Unit ->  | K13: =+IF($I13=0,0,F13/$I13) -> 
A14: =+#REF! ->  | B14: =+#REF! ->  | C14: =+[0]!YTotRet ->  | D14: =+[0]!YVarRet ->  | F14: =+[0]!YTotExp ->  | G14: =+[0]!YVarExp ->  | I14: =+[0]!YPrice ->  | J14: =+[0]!Unit -> 
A15: =+#REF! ->  | B15: =+#REF! ->  | C15: =+[0]!YTotRet ->  | D15: =+[0]!YVarRet ->  | F15: =+[0]!YTotExp ->  | G15: =+[0]!YVarExp ->  | I15: =+[0]!YPrice ->  | J15: =+[0]!Unit ->  | K15: =+IF($I15=0,0,F15/$I15) ->  | L15: =+IF($I15=0,0,G15/$I15) -> 
A17: OTHER BUDGETS
A19: =+'Livestock Budget'!A3 -> Livestock Budget | B19: =+'Livestock Budget'!D5 -> 0 | C19: =+'Livestock Budget'!YTotRet -> 0 | D19: =+'Livestock Budget'!YVarRet -> 0 | F19: =+'Livestock Budget'!YTotExp -> 0 | G19: =+'Livestock Budget'!YVarExp -> 0 | I19: =+'Livestock Budget'!YPrice -> 0 | J19: =+'Livestock Budget'!Unit -> CWT | K19: =+IF($I19=0,0,F19/$I19) -> 0 | L19: =+IF($I19=0,0,G19/$I19) -> 0
A20: =+'Crop Budget'!A3 -> Crop Enterprise | B20: =+'Crop Budget'!D5 -> 0 | C20: =+'Crop Budget'!YTotRet -> 0 | D20: =+'Crop Budget'!YVarRet -> 0 | F20: =+'Crop Budget'!YTotExp -> 0 | G20: =+'Crop Budget'!YVarExp -> 0 | I20: =+'Crop Budget'!YPrice -> 0 | J20: =+'Crop Budget'!Unit -> Cwt,lb,etc | K20: =+IF($I20=0,0,F20/$I20) -> 0 | L20: =+IF($I20=0,0,G20/$I20) -> 0

Sheet Your Returns-Share Rent
A1: Your Returns - Share Rent
A3: Variable Costs to the right of Total Costs | B3: Quantity | C3: Returns Above Total Specified Expenses | G3: Total Direct Expenses | K3: Breakeven Yield to Cover Total Costs at Price Entered | Q3: Returns Above Variable Specified Expenses | U3: Variable Direct Expenses | Y3: Breakeven Yield to Cover Variavle Costs at Price Entered
B4: Acres, AUs, or Head | C4: Total | D4: Tenant | E4: Landlord | G4: Total | H4: Tenant | I4: Landlord | K4: Price | L4: Units | M4: Total | N4: Tenant | O4: Landlord | Q4: Total | R4: Tenant | S4: Landlord | U4: Total | V4: Tenant | W4: Landlord | Y4: Price | Z4: Units | AA4: Total | AB4: Tenant | AC4: Landlord
A5: FIELD CROPS
A7: =+Soybeans!A3 -> Soybeans | B7: =+Soybeans!E7 -> 0 | C7: =+Soybeans!YTotRet -> 0 | D7: =+Soybeans!YTTotRet -> 0 | E7: =+Soybeans!YLTotRet -> 0 | G7: =+Soybeans!YTotExp -> 0 | H7: =+Soybeans!YTTotExp -> 0 | I7: =+Soybeans!YLTotExp -> 0 | K7: =+Soybeans!YPrice -> 0 | L7: =+Soybeans!Unit -> Bushel | M7: =+IF($K7=0,0,G7/$K7) -> 0 | N7: =+IF($K7=0,0,H7/$K7) -> 0 | O7: =+IF($K7=0,0,I7/$K7) -> 0 | Q7: =+Soybeans!YVarRet -> 0 | R7: =+Soybeans!YTVarRet -> 0 | S7: =+Soybeans!YLVarRet -> 0 | U7: =+Soybeans!YVarExp -> 0 | V7: =+Soybeans!YTVarExp -> 0 | W7: =+Soybeans!YLVarExp -> 0 | Y7: =+Soybeans!YPrice -> 0 | Z7: =+Soybeans!Unit -> Bushel | AA7: =+IF($K7=0,0,U7/$K7) -> 0 | AB7: 0 | AC7: 0
A8: =+RRSoybeans!A3 -> Roundup Ready Soybeans | B8: =+RRSoybeans!E7 -> 0 | C8: =+RRSoybeans!YTotRet -> 0 | D8: =+RRSoybeans!YTTotRet -> 0 | E8: =+RRSoybeans!YLTotRet -> 0 | G8: =+RRSoybeans!YTotExp -> 0 | H8: =+RRSoybeans!YTTotExp -> 0 | I8: =+RRSoybeans!YLTotExp -> 0 | K8: =+RRSoybeans!YPrice -> 0 | L8: =+RRSoybeans!Unit -> Bushel | M8: =+IF($K8=0,0,G8/$K8) -> 0 | N8: =+IF($K8=0,0,H8/$K8) -> 0 | O8: =+IF($K8=0,0,I8/$K8) -> 0 | Q8: =+RRSoybeans!YVarRet -> 0 | R8: =+RRSoybeans!YTVarRet -> 0 | S8: =+RRSoybeans!YLVarRet -> 0 | U8: =+RRSoybeans!YVarExp -> 0 | V8: =+RRSoybeans!YTVarExp -> 0 | W8: =+RRSoybeans!YLVarExp -> 0 | Y8: =+RRSoybeans!YPrice -> 0 | Z8: =+RRSoybeans!Unit -> Bushel | AA8: =+IF($K8=0,0,U8/$K8) -> 0 | AB8: =+IF($K8=0,0,V8/$K8) -> 0 | AC8: =+IF($K8=0,0,W8/$K8) -> 0
A9: =+Rice!A3 -> First Crop Rice (Jefferson-Liberty Counties) | B9: =+Rice!E7 -> 0 | C9: =+Rice!YTotRet -> 0 | D9: =+Rice!YTTotRet -> 0 | E9: =+Rice!YLTotRet -> 0 | G9: =+Rice!YTotExp -> 0 | H9: =+Rice!YTTotExp -> 0 | I9: =+Rice!YLTotExp -> 0 | K9: =+Rice!YPrice -> 0 | L9: =+Rice!Unit -> CWT | M9: =+IF($K9=0,0,G9/$K9) -> 0 | N9: =+IF($K9=0,0,H9/$K9) -> 0 | O9: =+IF($K9=0,0,I9/$K9) -> 0 | Q9: =+Rice!YVarRet -> 0 | R9: =+Rice!YTVarRet -> 0 | S9: =+Rice!YLVarRet -> 0 | U9: =+Rice!YVarExp -> 0 | V9: =+Rice!YTVarExp -> 0 | W9: =+Rice!YLVarExp -> 0 | Y9: =+Rice!YPrice -> 0 | Z9: =+Rice!Unit -> CWT | AA9: =+IF($K9=0,0,U9/$K9) -> 0 | AB9: =+IF($K9=0,0,V9/$K9) -> 0 | AC9: =+IF($K9=0,0,W9/$K9) -> 0
A11: LIVESTOCK
A13: =+#REF! ->  | B13: =+#REF! ->  | C13: =+[0]!YTotRet ->  | G13: =+[0]!YTotExp ->  | K13: =+[0]!YPrice ->  | L13: =+[0]!Unit ->  | M13: =+IF($K13=0,0,G13/$K13) ->  | Q13: =+[0]!YVarRet ->  | U13: =+[0]!YVarExp ->  | Y13: =+[0]!YPrice ->  | Z13: =+[0]!Unit ->  | AA13: =+IF($K13=0,0,U13/$K13) -> 
A14: =+#REF! ->  | B14: =+#REF! ->  | C14: =+[0]!YTotRet ->  | G14: =+[0]!YTotExp ->  | K14: =+[0]!YPrice ->  | L14: =+[0]!Unit ->  | M14: =+IF($K14=0,0,G14/$K14) ->  | Q14: =+[0]!YVarRet ->  | U14: =+[0]!YVarExp ->  | Y14: =+[0]!YPrice ->  | Z14: =+[0]!Unit -> 
A15: =+#REF! ->  | B15: =+#REF! ->  | C15: =+[0]!YTotRet ->  | G15: =+[0]!YTotExp ->  | K15: =+[0]!YPrice ->  | L15: =+[0]!Unit ->  | M15: =+IF($K15=0,0,G15/$K15) ->  | Q15: =+[0]!YVarRet ->  | U15: =+[0]!YVarExp ->  | Y15: =+[0]!YPrice ->  | Z15: =+[0]!Unit -> 
O26: =+IF(#REF!=0,0,#REF!/#REF!) -> 
O30: =+IF($K13=0,0,I13/$K13) -> 
O31: =+IF($K14=0,0,I14/$K14) -> 
O32: =+IF($K15=0,0,I15/$K15) -> 
